Workbook

Sheet Summary
A1: Engineer, Procure, Construct and Commission a 50 to 100 kW thermal Waste-to-Energy Test Facility at Eskom Research, Testing and Innovation Centre
A2: Revision Rev 0
A3: Summary
D7: Quantity | E7: Rate | F7: Total Amount
A8: Item No. | B8: Description | C8: Unit
B11: SUMMARY
A13: 1.00 | B13: =+Prelims!A3 -> Section 01 - Preliminaries & General | C13: Sum | D13: 1.00 | E13: =+Prelims!F27 -> 0 | F13: =+D13*E13 -> 0
A15: 2.00 | B15: =+'Designing & Fees'!A3 -> Section 02 -Designing & Professional Fees | C15: Sum | D15: 1.00 | E15: =+'Designing & Fees'!F25 -> 0 | F15: =+D15*E15 -> 0
A17: 3.00 | B17: =+Civils!A3 -> Section 03 - Civil Works | C17: Sum | D17: 1.00 | E17: =+Civils!F42 -> 0 | F17: =+D17*E17 -> 0
A19: 4.00 | B19: =+Structures!A3 -> Section 04 - Structures | C19: Sum | D19: 1.00 | E19: =+Structures!F43 -> 0 | F19: =+D19*E19 -> 0
A21: 5.00 | B21: =+Mechanical!A3 -> Section 05 - Mechanical & Fire | C21: Sum | D21: 1.00 | E21: =+Mechanical!F63 -> 0 | F21: =+D21*E21 -> 0
A23: 6.00 | B23: =+Electrical!A3 -> Section 06 - Electrical Installations | C23: Sum | D23: 1.00 | E23: =+Electrical!F55 -> 0 | F23: =+D23*E23 -> 0
A25: 7.00 | B25: =+'TESTING, COMMISIONING MAINTENAN'!A3 -> Section 07 - Testing, Comminitioning and Technical Support | C25: Sum | D25: 1.00 | E25: =+'TESTING, COMMISIONING MAINTENAN'!F50 -> 0 | F25: =+D25*E25 -> 0
B28: TOTAL CONTRACT VALUE EXCL CONTIGENCY | F28: =SUM(F13:F27) -> 0.00
B32: TOTAL CONTRACT VALUE EXCL VAT | F32: =SUM(F28:F31) -> 0.00
A56: TOTAL CARRIED FORWARD TO SUMMARY OF SCHEDULE OF QUANTITIES | F56: =+F32 -> 0.00

Sheet Prelims
A1: =+Summary!A1 -> Engineer, Procure, Construct and Commission a 50 to 100 kW thermal Waste-to-Energy Test Facility at Eskom Research, Testing and Innovation Centre
A2: =+Summary!A2 -> Revision Rev 0
A3: Section 01 - Preliminaries & General
D6: Quantity | E6: Rate | F6: Total Amount
A7: Item No. | B7: Description | C7: Unit
A10: 1 | B10: PRELIMINARIES AND GENERAL
A12: 1.1 | B12: FIXED CHARGE ITEMS
F14: =D14*E14 -> R0.00
F16: =D16*E16 -> R0.00
F18: =D18*E18 -> R0.00
B27: TOTAL CARRIED FORWARD TO SUMMARY OF SCHEDULE OF QUANTITIES | F27: =+SUM(F12:F26) -> R0.00

Sheet Designing & Fees
A1: =+Prelims!A1 -> Engineer, Procure, Construct and Commission a 50 to 100 kW thermal Waste-to-Energy Test Facility at Eskom Research, Testing and Innovation Centre
A2: =+Prelims!A2 -> Revision Rev 0
A3: Section 02 -Designing & Professional Fees
D6: Quantity | E6: Rate | F6: Total Amount
A7: Item No. | B7: Description | C7: Unit
A10: 2 | B10: PROFFESIONAL FEES
A12: 2.1
F14: =+D14*E14 -> R0.00
F16: =+D16*E16 -> R0.00
F20: =+D20*E20 -> R0.00
F22: =+D22*E22 -> R0.00
A25: TOTAL CARRIED FORWARD TO SUMMARY OF SCHEDULE OF QUANTITIES | F25: =+SUM(F13:F23) -> R0.00

Sheet Civils
A1: =+'Designing & Fees'!A1 -> Engineer, Procure, Construct and Commission a 50 to 100 kW thermal Waste-to-Energy Test Facility at Eskom Research, Testing and Innovation Centre
A2: =+'Designing & Fees'!A2 -> Revision Rev 0
A3: Section 03 - Civil Works
D7: Quantity | E7: Rate | F7: Total Amount
A8: Item No. | B8: Description | C8: Unit
A11: 3 | B11: CIVIL WORKS
A13: 3.1
F15: =+D15*E15 -> R0.00
F17: =+D17*E17 -> R0.00
A18: 3.2
F20: =+D20*E20 -> R0.00
A22: 3.3
F24: =+D24*E24 -> R0.00
A26: 3.4
F28: =+D28*E28 -> R0.00
F30: R0.00
A31: 3.5
F33: =E33*D33 -> R0.00
F35: =E35 -> R0.00
A37: 3.6
F39: =E39 -> R0.00
A42: TOTAL CARRIED FORWARD TO SUMMARY OF SCHEDULE OF QUANTITIES | F42: =+SUM(F12:F40) -> R0.00

Sheet Structures
A1: =+'Designing & Fees'!A1 -> Engineer, Procure, Construct and Commission a 50 to 100 kW thermal Waste-to-Energy Test Facility at Eskom Research, Testing and Innovation Centre
A2: =+'Designing & Fees'!A2 -> Revision Rev 0
A3: Section 04 - Structures
D7: Quantity | E7: Rate | F7: Total Amount
A8: Item No. | B8: Description | C8: Unit
A11: 4 | B11: Structures
A13: 4.1
A17: 4.1.1 | F17: =+D17*E17 -> R0.00
A19: 4.1.2 | F19: =+D19*E19 -> R0.00
A21: 4.1.3 | F21: =+D21*E21 -> R0.00
A23: 4.2
A25: 4.2.1 | F25: =+D25*E25 -> R0.00
A27: 4.2.2
A29: 4.2.3 | F29: =+D29*E29 -> R0.00
A31: 4.3
A33: 4.3.1 | F33: =+D33*E33 -> R0.00
A35: 4.4
A37: 4.4.1 | F37: =+D37*E37 -> R0.00
A39: 4.4.2 | F39: =+D39*E39 -> R0.00
A43: TOTAL CARRIED FORWARD TO SUMMARY OF SCHEDULE OF QUANTITIES | F43: =+SUM(F11:F40) -> R0.00

Sheet Mechanical
A1: =+'Designing & Fees'!A1 -> Engineer, Procure, Construct and Commission a 50 to 100 kW thermal Waste-to-Energy Test Facility at Eskom Research, Testing and Innovation Centre
A2: =+'Designing & Fees'!A2 -> Revision Rev 0
A3: Section 05 - Mechanical & Fire
D7: Quantity | E7: Rate | F7: Total Amount
A8: Item No. | B8: Description | C8: Unit
A11: 5 | B11: Mechanical
A13: 5.1
A15: 5.1.1 | C15: Sum | F15: =+D15*E15 -> R0.00
A17: 5.1.2 | C17: Sum | F17: =+D17*E17 -> R0.00
A19: 5.1.3 | C19: Sum | F19: =+D19*E19 -> R0.00
A21: 5.1.4 | C21: Sum | F21: =+D21*E21 -> R0.00
A23: 5.2
A25: 5.2.1 | C25: Sum | F25: =+D25*E25 -> R0.00
A27: 5.3
A29: 5.3.1 | C29: Sum | F29: =+D29*E29 -> R0.00
A31: 5.4
A33: 5.4.1 | C33: Sum | F33: =+D33*E33 -> R0.00
A35: 5.5
A37: 5.5.1 | C37: m2 | F37: =+D37*E37 -> R0.00
A39: 5.6
A41: 5.6.1 | C41: m2 | F41: =+D41*E41 -> R0.00
A43: 5.7
A45: 5.7.1 | C45: m2 | F45: =+D45*E45 -> R0.00
A47: 5.8
A49: 5.8.1 | C49: Sum | F49: =+D49*E49 -> R0.00
A51: 5.9
A53: 5.9.1 | C53: m | F53: =+D53*E53 -> R0.00
A55: 5.10
A57: 5.10.1 | C57: Sum | F57: =E57*D57 -> R0.00
A59: 5.10.2 | C59: Sum | F59: =E59*D59 -> R0.00
A63: TOTAL CARRIED FORWARD TO SUMMARY OF SCHEDULE OF QUANTITIES | F63: =+SUM(F11:F60) -> R0.00

Sheet Electrical
A1: =+'Designing & Fees'!A1 -> Engineer, Procure, Construct and Commission a 50 to 100 kW thermal Waste-to-Energy Test Facility at Eskom Research, Testing and Innovation Centre
A2: =+'Designing & Fees'!A2 -> Revision Rev 0
A3: Section 06 - Electrical Installations
D7: Quantity | E7: Rate | F7: Total Amount
A8: Item No. | B8: Description | C8: Unit
A11: 6 | B11: Electrical and C&I Installations
A13: 6.1
A15: 6.1.1 | C15: no | F15: =+D15*E15 -> R0.00
A17: 6.1.2 | C17: no | F17: =+D17*E17 -> R0.00
A19: 6.1.3 | C19: Sum | F19: =+D19*E19 -> R0.00
A21: 6.2
A23: 6.2.1 | C23: Sum | F23: =+D23*E23 -> R0.00
A25: 6.2.2 | C25: no | F25: =+D25*E25 -> R0.00
A27: 6.3
A29: 6.3.1 | C29: Sum | F29: =E29 -> R0.00
A55: TOTAL CARRIED FORWARD TO SUMMARY OF SCHEDULE OF QUANTITIES | F55: =+SUM(F11:F52) -> R0.00

Sheet TESTING, COMMISIONING MAINTENAN
A1: =+'Designing & Fees'!A1 -> Engineer, Procure, Construct and Commission a 50 to 100 kW thermal Waste-to-Energy Test Facility at Eskom Research, Testing and Innovation Centre
A2: =+'Designing & Fees'!A2 -> Revision Rev 0
A3: Section 07 - Testing, Comminitioning and Technical Support
D7: Quantity | E7: Rate | F7: Total Amount
A8: Item No. | B8: Description | C8: Unit
A11: 6 | B11: TESTING, COMMISIONING AND TRAINING
B13: Testing, Commissioning & Hand-over | C13: Sum | F13: =+D13*E13 -> R0.00
B15: Training of Eskom Staff | C15: Sum | F15: =+D15*E15 -> R0.00
B17: Allow for the maintenance and technical support.( as and when required)-- Technician | C17: R/hr | D17: 120.00 | F17: =+D17*E17 -> R0.00
B18: Allow for the maintenance and technical support.( as and when required)-- Engineer | C18: R/hr | D18: 120.00 | F18: =+D18*E18 -> R0.00
A50: TOTAL CARRIED FORWARD TO SUMMARY OF SCHEDULE OF QUANTITIES | F50: =+SUM(F10:F47) -> R0.00

Sheet SUMMARY (2) (hidden)
A1: =+'TESTING, COMMISIONING MAINTENAN'!A1 -> Engineer, Procure, Construct and Commission a 50 to 100 kW thermal Waste-to-Energy Test Facility at Eskom Research, Testing and Innovation Centre
A2: =+'TESTING, COMMISIONING MAINTENAN'!A2 -> Revision Rev 0
H8: CORE CONSULTANTS | Z8: ADVISORY CONSULTANTS
H10: Project Manager | J10: =BREAKDOWN!J19 -> Architect | L10: =BREAKDOWN!M19 -> Quantity Surveyor | N10: =BREAKDOWN!P19 -> Structural Engineer | P10: =BREAKDOWN!S19 -> Civil Engineer | R10: =BREAKDOWN!V19 -> Mechanical Engineer | T10: =BREAKDOWN!Y19 -> Electrical Engineer | V10: =BREAKDOWN!AE19 -> Fire Engineer | X10: =BREAKDOWN!AH19 -> Wet Services | Z10: Project Manager | AB10: =BREAKDOWN!AB19 -> Rational Fire Engineer | AD10: =BREAKDOWN!AK19 -> Landscape Architect | AF10: Safety Consultant | AH10: Façade Engineer | AJ10: Green Consultant | AL10: Lift Consultant | AN10: Acoustic Consultant | AP10: Services Co-ordination | AR10: Tenant Co-ordinator
B14: Fee As per Calculation | E14: =F14/D28 ->  | F14: =SUM(H14:AR14) ->  | H14: =PM!D36 ->  | J14: =ARCH!D49 ->  | L14: =QS!D114 ->  | N14: =STRUC!D97 ->  | P14: =CIVIL!D97 ->  | R14: =MECH!D70 ->  | T14: =ELEC!D68 ->  | V14: =+FIRE!D68 ->  | X14: 0 | Z14: 0 | AB14: 0 | AD14: 0 | AF14: 0 | AH14: 0 | AJ14: 0 | AL14: 0 | AN14: 0 | AP14: 0 | AR14: 0
B16: Total Project Discount | E16: =+F16/F14*-1 ->  | F16: =SUM(H16:AR16) ->  | H16: =PM!D38 ->  | J16: =ARCH!D51 ->  | L16: =QS!D116 ->  | N16: =STRUC!D98 ->  | P16: =CIVIL!D98 ->  | R16: =MECH!D71 ->  | T16: =ELEC!D69 ->  | V16: =+FIRE!D69 ->  | X16: 0 | Z16: 0 | AB16: 0 | AD16: 0 | AF16: 0 | AH16: 0 | AJ16: 0 | AL16: 0 | AN16: 0 | AP16: 0 | AR16: 0 | AT16: =+AB20+AD20+AF20+AJ20 -> 0
B18: Total Project Disbursements | E18: 0.0% | F18: =SUM(H18:AJ18) ->  | H18: =+SUM(H14:H16)*$E$18 ->  | J18: =+SUM(J14:J16)*$E$18 ->  | L18: =+SUM(L14:L16)*$E$18 ->  | N18: =+SUM(N14:N16)*$E$18 ->  | P18: =+SUM(P14:P16)*$E$18 ->  | R18: =+SUM(R14:R16)*$E$18 ->  | T18: =+SUM(T14:T16)*$E$18 ->  | V18: =+SUM(V14:V16)*$E$18 ->  | X18: =+SUM(X14:X16)*$E$18 -> 0 | Z18: =+SUM(Z14:Z16)*$E$18 -> 0 | AB18: =+SUM(AB14:AB16)*$E$18 -> 0 | AD18: =+SUM(AD14:AD16)*$E$18 -> 0 | AF18: =+SUM(AF14:AF16)*$E$18 -> 0 | AH18: =+SUM(AH14:AH16)*$E$18 -> 0 | AJ18: =+SUM(AJ14:AJ16)*$E$18 -> 0 | AL18: =+SUM(AL14:AL16)*$E$18 -> 0 | AN18: =+SUM(AN14:AN16)*$E$18 -> 0 | AP18: =+SUM(AP14:AP16)*$E$18 -> 0 | AR18: =+SUM(AR14:AR16)*$E$18 -> 0
B20: Adjusted fee | F20: =SUM(H20:AR20) ->  | H20: =(SUM(H14:H19)) ->  | J20: =SUM(J14:J19) ->  | L20: =SUM(L14:L19) ->  | N20: =SUM(N14:N19) ->  | P20: =SUM(P14:P19) ->  | R20: =SUM(R14:R19) ->  | T20: =SUM(T14:T19) ->  | V20: =SUM(V14:V19) ->  | X20: =SUM(X14:X19) -> 0 | Z20: =SUM(Z14:Z19) -> 0 | AB20: =SUM(AB14:AB19) -> 0 | AD20: =SUM(AD14:AD19) -> 0 | AF20: =SUM(AF14:AF19) -> 0 | AH20: =SUM(AH14:AH19) -> 0 | AJ20: =SUM(AJ14:AJ19) -> 0 | AL20: =SUM(AL14:AL19) -> 0 | AN20: =SUM(AN14:AN19) -> 0 | AP20: =SUM(AP14:AP19) -> 0 | AR20: =SUM(AR14:AR19) -> 0
B22: Total Project Disbursements | E22: 2.0% | F22: =SUM(H22:AJ22) ->  | H22: =+H20*E22 ->  | J22: =+SUM(J20)*$E$22 ->  | L22: =+SUM(L20)*$E$22 ->  | N22: =+SUM(N20)*$E$22 ->  | P22: =+SUM(P20)*$E$22 ->  | R22: =+SUM(R20)*$E$22 ->  | T22: =+SUM(T20)*$E$22 ->  | V22: =+SUM(V20)*$E$22 ->  | X22: =+SUM(X20)*$E$22 -> 0 | Z22: =+SUM(Z18:Z20)*$E$18 -> 0 | AB22: =+SUM(AB20)*$E$22 -> 0 | AD22: =+SUM(AD20)*$E$22 -> 0 | AF22: =+SUM(AF20)*$E$22 -> 0 | AH22: =+SUM(AH20)*$E$22 -> 0 | AJ22: =+SUM(AJ20)*$E$22 -> 0 | AL22: =+SUM(AL20)*$E$22 -> 0 | AN22: =+SUM(AN20)*$E$22 -> 0 | AP22: =+SUM(AP20)*$E$22 -> 0 | AR22: =+SUM(AR20)*$E$22 -> 0
B24: Adjusted fee (Including Disbursements) | F24: =SUM(H24:AR24) ->  | H24: =(SUM(H20:H23)) ->  | J24: =(SUM(J20:J23)) ->  | L24: =(SUM(L20:L23)) ->  | N24: =(SUM(N20:N23)) ->  | P24: =(SUM(P20:P23)) ->  | R24: =(SUM(R20:R23)) ->  | T24: =(SUM(T20:T23)) ->  | V24: =(SUM(V20:V23)) ->  | X24: =(SUM(X20:X23)) -> 0 | Z24: =SUM(Z18:Z23) -> 0 | AB24: =(SUM(AB20:AB23)) -> 0 | AD24: =(SUM(AD20:AD23)) -> 0 | AF24: =(SUM(AF20:AF23)) -> 0 | AH24: =(SUM(AH20:AH23)) -> 0 | AJ24: =(SUM(AJ20:AJ23)) -> 0 | AL24: =(SUM(AL20:AL23)) -> 0 | AN24: =(SUM(AN20:AN23)) -> 0 | AP24: =(SUM(AP20:AP23)) -> 0 | AR24: =(SUM(AR20:AR23)) -> 0
B26: % on Fees | F26: =SUM(H26:AJ26) ->  | H26: =H20/$F$20 ->  | J26: =J20/$F$20 ->  | L26: =L20/$F$20 ->  | N26: =N20/$F$20 ->  | P26: =P20/$F$20 ->  | R26: =R20/$F$20 ->  | T26: =T20/$F$20 ->  | V26: =V20/$F$20 ->  | X26: =X20/$F$20 ->  | Z26: =Z20/$F$20 ->  | AB26: =AB20/$F$20 ->  | AD26: =AD20/$F$20 ->  | AF26: =AF20/$F$20 ->  | AH26: =AH20/$F$20 ->  | AJ26: =AJ20/$F$20 ->  | AL26: =AL20/$F$20 ->  | AN26: =AN20/$F$20 ->  | AP26: =AP20/$F$20 ->  | AR26: =AR20/$F$20 -> 
B28: % on Construction Value Core Consultants | D28: =BREAKDOWN!F71 -> R 1,888,189 | F28: =SUM(H28:Y28) ->  | H28: =H20/$D$28 ->  | J28: =J20/$D$28 ->  | L28: =L20/$D$28 ->  | N28: =N20/$D$28 ->  | P28: =P20/$D$28 ->  | R28: =R20/$D$28 ->  | T28: =T20/$D$28 ->  | V28: =V20/$D$28 ->  | X28: =X20/$D$28 -> 0.00% | Z28: =Z20/$D$28 -> 0.00% | AB28: =AB20/$D$28 -> 0.00% | AD28: =AD20/$D$28 -> 0.00% | AF28: =AF20/$D$28 -> 0.00% | AH28: =AH20/$D$28 -> 0.00% | AJ28: =AJ20/$D$28 -> 0.00% | AL28: =AL20/$D$28 -> 0.00% | AN28: =AN20/$D$28 -> 0.00% | AP28: =AP20/$D$28 -> 0.00% | AR28: =AR20/$D$28 -> 0.00%
F32: ALL CHECKS TO BE = 0
F33: =SUM(F14:F18) ->  | H33: ='STAGE BREAKDOWN'!H23 ->  | J33: =ARCH!D56 ->  | L33: =QS!D121 ->  | N33: ='STAGE BREAKDOWN'!N23 ->  | P33: =CIVIL!D103 ->  | R33: =MECH!D76 ->  | T33: =ELEC!D74 ->  | V33: =+FIRE!E86 ->  | W33: 0 | X33: 0 | Y33: Excl Vat | Z33: =PM!D43 ->  | AB33: ='SUMMARY (2)'!AB24 -> 0 | AC33: 0 | AD33: ='STAGE BREAKDOWN'!AD23 -> 0 | AE33: 0 | AF33: =AF24 -> 0 | AG33: 0 | AH33: =AH20 -> 0 | AI33: 0 | AJ33: =AJ20 -> 0 | AK33: 0 | AL33: =AL20 -> 0 | AM33: 0 | AN33: =AN20 -> 0 | AO33: 0 | AP33: =AP20 -> 0 | AQ33: 0 | AR33: =AR20 -> 0
F34: =F20-F33 ->  | H34: =H33-SUM(H20:H22) ->  | I34: =I33-SUM(I20:I22) -> 0 | K34: 0 | M34: 0 | O34: 0 | Q34: 0 | S34: 0 | U34: 0 | W34: 0 | X34: 0 | AA34: 0 | AB34: 0 | AC34: 0 | AD34: 0 | AE34: 0 | AF34: 0 | AG34: 0 | AH34: 0 | AI34: 0 | AJ34: 0 | AK34: 0 | AL34: 0 | AM34: 0 | AN34: 0 | AO34: 0 | AP34: 0 | AQ34: 0 | AR34: 0
F35: CHECK | H35: CHECK | J35: CHECK | L35: CHECK | N35: CHECK | P35: CHECK | R35: CHECK | T35: CHECK | V35: CHECK | W35: CHECK | X35: CHECK | Y35: CHECK | Z35: CHECK | AB35: CHECK | AC35: CHECK | AD35: CHECK
F37: =+F24-'STAGE BREAKDOWN'!D23 ->  | P37: =IF(AND(Z34=0,J34=0,L34=0,N34=0,P34=0,R34=0,T34=0,AB34=0),"","ERROR ON SHEET") -> 
X41: Should be ZERO

Sheet Exchange Rate& Inflation (hidden)
F2: =++#REF! -> 
A4: PROJECT DESCRIPTION : | C4: =+'TESTING, COMMISIONING MAINTENAN'!A1 -> Engineer, Procure, Construct and Commission a 50 to 100 kW thermal Waste-to-Energy Test Facility at Eskom Research, Testing and Innovation Centre
B7: Stock No. | C7: Description | D7: Quantity | E7: Rate | F7: Amount
C8: Mechanical
C10: Eectrolysers
C12: AEM Flex 120 - 25 Nm³/h (Purity of 99.95%) 50 AEM stack modules, control system, power supplies, safety system, electrolyte circuit, hydrogen chiller/heating, assembled and pre-tested, KOH and Glycol containment; Skid-mounted. Set of consumables for commissioning included | D12: 1 | E12: =+Mechanical!E15 -> R 0.00 | F12: =+D12*E12 -> 0.00
C14: Dryer (Increase purity to 99.999%) | D14: 1 | E14: =+Mechanical!E17 -> R 0.00 | F14: =+D14*E14 -> 0.00
C16: Water Purification System for the Flex 120 | D16: 1 | E16: =+Mechanical!E19 -> R 0.00 | F16: =+D16*E16 -> 0.00
C18: Containerization, integration and BOP (20ft high cube container | D18: 1 | E18: =+Mechanical!E21 -> R 0.00 | F18: =+D18*E18 -> 0.00
C20: Bulk Storage Vesels
C22: Manufacture,Inspection, Testing and ex-works delivery of 3 x 316L & 3 x P355 x 24000L Hydrogen Storage Vessels. Pressure Vessels | D22: 1 | E22: =+Mechanical!E25 -> R 0.00 | F22: =+D22*E22 -> 0.00
C24: Pressure Reduction and Metering Station
C26: Manufacture and assembly metering station | D26: 1 | E26: =+Mechanical!E29 -> R 0.00 | F26: =+D26*E26 -> 0.00
C28: Sub Total | F28: =+SUM(F12:F26) -> 0
E33: Sub Total | F33: =+F28 -> 0.00
B35: Based on Foreign exchange rate of 1 EUR = R19.88 (02/05/2024) | F35: =F33 -> 0.00
B36: Exchange adjustment to 09/05/2024 (EUR = R19.98) | F36: =F35*19.98/19.98-F35 -> 0.00
F37: =F35+F36 -> 0.00
C39: Overseas inflation per annum: March 2025 - January 2026 | E39: =0.0425 -> 4.25% | F39: Current US Inflation Rates: 2000-2025 (usinflationcalculator.com)
C40: 2025-03-01 | D40: =F37 -> 0.00
C41: 2026-01-30 | D41: =D40*1.425 -> 0.00
D42: =D40*(1+E39) -> 0.00
C44: Overseas inflation over the above period | E44: =D42-D40 -> 0.00 | F44: =E44 -> R 0.00
E46: Sub Total | F46: =F44+F28 -> R 0.00
C47: Cost of cover | D47: =+F724 -> 0.056 | F47: =+F46*D47 -> R 0.00
E49: Total | F49: =F47+F46 -> 0.00
B54: Stock No. | C54: Description | D54: Quantity | E54: Rate | F54: Amount
C55: Supply PC and Software | D55: 1 | E55: R 210,000.00 | F55: =E55*D55 -> 210,000.00
E57: Sub Total | F57: =SUM(F55:F56) -> 210,000.00
B59: Based on Foreign exchange rate of 1 USD = R10.1229(27/02/2009) | F59: =F57 -> 210,000.00
B60: Exchange adjustment to 09/03/2009 (USD = R10.586) | F60: =F59*10.586/10.1229-F59 -> 9,607.03
F61: =F59+F60 -> 219,607.03
C63: Overseas inflation per annum:
C64: 2009-02-11 | D64: =F61 -> 219,607.03
C65: =+C64+16 -> 2009-02-27 | D65: =D64*1.03 -> 226,195.24 | E65: =0.07/12*12 -> 0.070
D66: =D64*(1+E65) -> 234,979.52
C68: Overseas inflation over the above period | E68: =D66-D64 -> 15,372.49 | F68: =E68 -> R 15,372.49
E70: Sub Total | F70: =F68+F61 -> R 234,979.52
C71: Cost of cover to be borne by supplier (10% interest rate ) | F71: =F70*0.1 -> R 23,497.95
E73: Total | F73: =F71+F70 -> 258,477.47
B78: Stock No. | C78: Description | D78: Quantity | E78: Rate | F78: Amount
C79: Control Panels | D79: 1 | E79: R 1,800,000.00 | F79: =E79*D79 -> 1,800,000.00
E81: Sub Total | F81: =SUM(F79:F80) -> 1,800,000.00
B83: Based on Foreign exchange rate of 1 USD = R10.1229(27/02/2009) | F83: =F81 -> 1,800,000.00
B84: Exchange adjustment to 09/03/2009 (USD = R10.586) | F84: =F83*10.586/10.1229-F83 -> 82,345.97
F85: =F83+F84 -> 1,882,345.97
C87: Overseas inflation per annum:
C88: 2009-02-11 | D88: =F85 -> 1,882,345.97
C89: =+C88+16 -> 2009-02-27 | D89: =D88*1.03 -> 1,938,816.35 | E89: =0.07/12*12 -> 0.070
D90: =D88*(1+E89) -> 2,014,110.19
C92: Overseas inflation over the above period | E92: =D90-D88 -> 131,764.22 | F92: =E92 -> R 131,764.22
E94: Sub Total | F94: =F92+F85 -> R 2,014,110.19
C95: Cost of cover to be borne by supplier (10% interest rate ) | F95: =F94*0.1 -> R 201,411.02
E97: Total | F97: =F95+F94 -> 2,215,521.20
B102: Stock No. | C102: Description | D102: Quantity | E102: Rate | F102: Amount
C103: Routers | D103: 1 | E103: R 190,000.00 | F103: =E103*D103 -> 190,000.00
E105: Sub Total | F105: =SUM(F103:F104) -> 190,000.00
B107: Based on Foreign exchange rate of 1 USD = R10.1229(27/02/2009) | F107: =F105 -> 190,000.00
B108: Exchange adjustment to 09/03/2009 (USD = R10.586) | F108: =F107*10.586/10.1229-F107 -> 8,692.07
F109: =F107+F108 -> 198,692.07
C111: Overseas inflation per annum:
C112: 2009-02-11 | D112: =F109 -> 198,692.07
C113: =+C112+16 -> 2009-02-27 | D113: =D112*1.03 -> 204,652.84 | E113: =0.07/12*12 -> 0.070
D114: =D112*(1+E113) -> 212,600.52
C116: Overseas inflation over the above period | E116: =D114-D112 -> 13,908.45 | F116: =E116 -> R 13,908.45
E118: Sub Total | F118: =F116+F109 -> R 212,600.52
C119: Cost of cover to be borne by supplier (10% interest rate ) | F119: =F118*0.1 -> R 21,260.05
E121: Total | F121: =F119+F118 -> 233,860.57
B126: Stock No. | C126: Description | D126: Quantity | E126: Rate | F126: Amount
C127: Outstations | D127: 1 | E127: R 1,400,000.00 | F127: =E127*D127 -> 1,400,000.00
E129: Sub Total | F129: =SUM(F127:F128) -> 1,400,000.00
B131: Based on Foreign exchange rate of 1 USD = R10.1229(27/02/2009) | F131: =F129 -> 1,400,000.00
B132: Exchange adjustment to 09/03/2009 (USD = R10.586) | F132: =F131*10.586/10.1229-F131 -> 64,046.86
F133: =F131+F132 -> 1,464,046.86
C135: Overseas inflation per annum:
C136: 2009-02-11 | D136: =F133 -> 1,464,046.86
C137: =+C136+16 -> 2009-02-27 | D137: =D136*1.03 -> 1,507,968.27 | E137: =0.07/12*12 -> 0.070
D138: =D136*(1+E137) -> 1,566,530.14
C140: Overseas inflation over the above period | E140: =D138-D136 -> 102,483.28 | F140: =E140 -> R 102,483.28
E142: Sub Total | F142: =F140+F133 -> R 1,566,530.14
C143: Cost of cover to be borne by supplier (10% interest rate ) | F143: =F142*0.1 -> R 156,653.01
E145: Total | F145: =F143+F142 -> 1,723,183.16
B152: Stock No. | C152: Description | D152: Quantity | E152: Rate | F152: Amount
C153: Control Panel | D153: 1 | E153: R 1,200,000.00 | F153: =E153*D153 -> 1,200,000.00
E155: Sub Total | F155: =SUM(F153:F154) -> 1,200,000.00
B157: Based on Foreign exchange rate of 1 USD = R10.1229(27/02/2009) | F157: =F155 -> 1,200,000.00
B158: Exchange adjustment to 09/03/2009 (USD = R10.586) | F158: =F157*10.586/10.1229-F157 -> R 54,897.31
F159: =F157+F158 -> R 1,254,897.31
C161: Overseas inflation per annum:
C162: 2007-05-25 | D162: =F159 -> 1,254,897.31
C163: =+C162+31+30+31+30+31+30+31+30+31+30+31+30+31+8 -> 2008-07-03 | D163: =D162*1.03 -> 1,292,544.23 | E163: =0.07/12*12 -> 0.070
D164: =D162*(1+E163) -> 1,342,740.12
C166: Overseas inflation over the above period | E166: =D164-D162 -> 87,842.81 | F166: =E166 -> R 87,842.81
E168: Sub Total | F168: =F166+F159 -> R 1,342,740.12
C169: Cost of cover to be borne by supplier (10% interest rate) | F169: =F168*0.1 -> R 134,274.01
E171: Total | F171: =F169+F168 -> 1,477,014.14
A323: Labour
A324: 21/07/2010 | B324: 21/05/2013
A325: 13859 | B325: 16239.3 | C325: =B325/A325 -> 1.171751209
A326: Revised
A327: 21/07/2010 | B327: 19/06/2017 | D327: SEIFSA Table C-3 All hourly Labour
A328: =13859/162.393 -> 85.3423485 | B328: 137.8 | C328: =B328/A328 -> 1.614673165
A330: Revised
A331: 21/07/2010 | B331: 19/06/2017 | D331: SEIFSA Table G-Electrical Material
A332: =1253.9/13.38730672 -> 93.66335038 | B332: 116.6 | C332: =B332/A332 -> 1.244883933
F334: =+F46*0.05 -> 0
I337: ESTIMATE
A338: Item No. | B338: Description | C338: Quantity | D338: Unit Price | E338: Amount | F338: ROE( EUR=R14.3955) (19/01/2014) | G338: Inflation | H338: Cost of cover | I338: Amount
A339: 1 | B339: =+C4 -> Engineer, Procure, Construct and Commission a 50 to 100 kW thermal Waste-to-Energy Test Facility at Eskom Research, Testing and Innovation Centre | C339: 1 | D339: =E8 -> 0.00 | E339: =+C339*D339 -> 0.00 | F339: =F37 -> 0.00 | G339: =E44 -> 0.00 | H339: =F47 -> 0.00 | I339: =F339+G339+H339 -> 0.00
I342: =+I339-F49 -> 0.00
I343: 3146839.87
I345: 1.09
I346: =+I339/I345 -> 0
B347: PROJECT MANAGEMENT | I347: =+I346-I343 -> -3,146,839.87
E350: Sub Total | F350: 112,546.80
B352: Based on Foreign exchange rate of 1 EUR = R14.3955(19/01/2014) | F352: =F350 -> 112,546.80
B353: Exchange adjustment to 25/02/2022 (EUR = R17.0261) | F353: =F352*17.0261/14.3955-F352 -> 20,566.54
F354: =F352+F353 -> 133,113.34
C356: Overseas inflation per annum: | F356: =5.1/1.9 -> R 2.68
C357: 2014-01-14 | D357: =F354 -> 133,113.34 | G357: =9*12 -> 108
C358: 2022-02-25 | D358: =D357*1.459 -> 194,212.36 | E358: =0.051/12*108 -> 0.459
D359: =D357*(1+E358) -> 194,212.36
C361: Overseas inflation over the above period | E361: =D359-D357 -> 61,099.02 | F361: =E361 -> R 61,099.02
E363: Sub Total | F363: =F361+F354 -> R 194,212.36
C364: Cost of cover to be borne by supplier (6% interest rate ) | F364: =F363*0.06 -> R 11,652.74
E366: Total | F366: =F364+F363 -> 205,865.10
B371: Stock No. | C371: Description | D371: Quantity | E371: Rate | F371: Amount
C372: Supply PC and Software | D372: 1 | E372: R 210,000.00 | F372: =E372*D372 -> 210,000.00
E374: Sub Total | F374: =SUM(F372:F373) -> 210,000.00
B376: Based on Foreign exchange rate of 1 USD = R10.1229(27/02/2009) | F376: =F374 -> 210,000.00
B377: Exchange adjustment to 09/03/2009 (USD = R10.586) | F377: =F376*10.586/10.1229-F376 -> 9,607.03
F378: =F376+F377 -> 219,607.03
C380: Overseas inflation per annum:
C381: 2009-02-11 | D381: =F378 -> 219,607.03
C382: =+C381+16 -> 2009-02-27 | D382: =D381*1.03 -> 226,195.24 | E382: =0.07/12*12 -> 0.070
D383: =D381*(1+E382) -> 234,979.52
C385: Overseas inflation over the above period | E385: =D383-D381 -> 15,372.49 | F385: =E385 -> R 15,372.49
E387: Sub Total | F387: =F385+F378 -> R 234,979.52
C388: Cost of cover to be borne by supplier (10% interest rate ) | F388: =F387*0.1 -> R 23,497.95
E390: Total | F390: =F388+F387 -> 258,477.47
B395: Stock No. | C395: Description | D395: Quantity | E395: Rate | F395: Amount
C396: Control Panels | D396: 1 | E396: R 1,800,000.00 | F396: =E396*D396 -> 1,800,000.00
E398: Sub Total | F398: =SUM(F396:F397) -> 1,800,000.00
B400: Based on Foreign exchange rate of 1 USD = R10.1229(27/02/2009) | F400: =F398 -> 1,800,000.00
B401: Exchange adjustment to 09/03/2009 (USD = R10.586) | F401: =F400*10.586/10.1229-F400 -> 82,345.97
F402: =F400+F401 -> 1,882,345.97
C404: Overseas inflation per annum:
C405: 2009-02-11 | D405: =F402 -> 1,882,345.97
C406: =+C405+16 -> 2009-02-27 | D406: =D405*1.03 -> 1,938,816.35 | E406: =0.07/12*12 -> 0.070
D407: =D405*(1+E406) -> 2,014,110.19
C409: Overseas inflation over the above period | E409: =D407-D405 -> 131,764.22 | F409: =E409 -> R 131,764.22
E411: Sub Total | F411: =F409+F402 -> R 2,014,110.19
C412: Cost of cover to be borne by supplier (10% interest rate ) | F412: =F411*0.1 -> R 201,411.02
E414: Total | F414: =F412+F411 -> 2,215,521.20
B419: Stock No. | C419: Description | D419: Quantity | E419: Rate | F419: Amount
C420: Routers | D420: 1 | E420: R 190,000.00 | F420: =E420*D420 -> 190,000.00
E422: Sub Total | F422: =SUM(F420:F421) -> 190,000.00
B424: Based on Foreign exchange rate of 1 USD = R10.1229(27/02/2009) | F424: =F422 -> 190,000.00
B425: Exchange adjustment to 09/03/2009 (USD = R10.586) | F425: =F424*10.586/10.1229-F424 -> 8,692.07
F426: =F424+F425 -> 198,692.07
C428: Overseas inflation per annum:
C429: 2009-02-11 | D429: =F426 -> 198,692.07
C430: =+C429+16 -> 2009-02-27 | D430: =D429*1.03 -> 204,652.84 | E430: =0.07/12*12 -> 0.070
D431: =D429*(1+E430) -> 212,600.52
C433: Overseas inflation over the above period | E433: =D431-D429 -> 13,908.45 | F433: =E433 -> R 13,908.45
E435: Sub Total | F435: =F433+F426 -> R 212,600.52
C436: Cost of cover to be borne by supplier (10% interest rate ) | F436: =F435*0.1 -> R 21,260.05
E438: Total | F438: =F436+F435 -> 233,860.57
B443: Stock No. | C443: Description | D443: Quantity | E443: Rate | F443: Amount
C444: Outstations | D444: 1 | E444: R 1,400,000.00 | F444: =E444*D444 -> 1,400,000.00
E446: Sub Total | F446: =SUM(F444:F445) -> 1,400,000.00
B448: Based on Foreign exchange rate of 1 USD = R10.1229(27/02/2009) | F448: =F446 -> 1,400,000.00
B449: Exchange adjustment to 09/03/2009 (USD = R10.586) | F449: =F448*10.586/10.1229-F448 -> 64,046.86
F450: =F448+F449 -> 1,464,046.86
C452: Overseas inflation per annum:
C453: 2009-02-11 | D453: =F450 -> 1,464,046.86
C454: =+C453+16 -> 2009-02-27 | D454: =D453*1.03 -> 1,507,968.27 | E454: =0.07/12*12 -> 0.070
D455: =D453*(1+E454) -> 1,566,530.14
C457: Overseas inflation over the above period | E457: =D455-D453 -> 102,483.28 | F457: =E457 -> R 102,483.28
E459: Sub Total | F459: =F457+F450 -> R 1,566,530.14
C460: Cost of cover to be borne by supplier (10% interest rate ) | F460: =F459*0.1 -> R 156,653.01
E462: Total | F462: =F460+F459 -> 1,723,183.16
B469: Stock No. | C469: Description | D469: Quantity | E469: Rate | F469: Amount
C470: Control Panel | D470: 1 | E470: R 1,200,000.00 | F470: =E470*D470 -> 1,200,000.00
E472: Sub Total | F472: =SUM(F470:F471) -> 1,200,000.00
B474: Based on Foreign exchange rate of 1 USD = R10.1229(27/02/2009) | F474: =F472 -> 1,200,000.00
B475: Exchange adjustment to 09/03/2009 (USD = R10.586) | F475: =F474*10.586/10.1229-F474 -> R 54,897.31
F476: =F474+F475 -> R 1,254,897.31
C478: Overseas inflation per annum:
C479: 2007-05-25 | D479: =F476 -> 1,254,897.31
C480: =+C479+31+30+31+30+31+30+31+30+31+30+31+30+31+8 -> 2008-07-03 | D480: =D479*1.03 -> 1,292,544.23 | E480: =0.07/12*12 -> 0.070
D481: =D479*(1+E480) -> 1,342,740.12
C483: Overseas inflation over the above period | E483: =D481-D479 -> 87,842.81 | F483: =E483 -> R 87,842.81
E485: Sub Total | F485: =F483+F476 -> R 1,342,740.12
C486: Cost of cover to be borne by supplier (10% interest rate) | F486: =F485*0.1 -> R 134,274.01
E488: Total | F488: =F486+F485 -> 1,477,014.14
A640: Labour
A641: 21/07/2010 | B641: 21/05/2013
A642: 13859 | B642: 16239.3 | C642: =B642/A642 -> 1.171751209
A643: Revised
... 11 more rows

Sheet STAGE BREAKDOWN (hidden)
A1: =+'SUMMARY (2)'!A1 -> Engineer, Procure, Construct and Commission a 50 to 100 kW thermal Waste-to-Energy Test Facility at Eskom Research, Testing and Innovation Centre
A2: =+'SUMMARY (2)'!A2 -> Revision Rev 0
A7: PROFESSIONAL FEES BREAKDOWN
H9: CORE CONSULTANTS | Z9: ADVISORY CONSULTANTS | AT9: =5310/4 -> 1327.5
D11: TOTAL | F11: CUMULATIVE TOTAL | H11: =+BREAKDOWN!G19 -> Project Manager | J11: =BREAKDOWN!J19 -> Architect | L11: =BREAKDOWN!M19 -> Quantity Surveyor | N11: =BREAKDOWN!P19 -> Structural Engineer | P11: =BREAKDOWN!S19 -> Civil Engineer | R11: =BREAKDOWN!V19 -> Mechanical Engineer | T11: =BREAKDOWN!Y19 -> Electrical Engineer | V11: =BREAKDOWN!AE19 -> Fire Engineer | X11: =BREAKDOWN!AH19 -> Wet Services | Z11: =+'SUMMARY (2)'!Z10 -> Project Manager | AB11: =BREAKDOWN!AB19 -> Rational Fire Engineer | AD11: =BREAKDOWN!AK19 -> Landscape Architect | AF11: =+'SUMMARY (2)'!AF10 -> Safety Consultant | AH11: Façade Engineer | AJ11: =+'SUMMARY (2)'!AJ10 -> Green Consultant | AK11: ='SUMMARY (2)'!AL10 -> Lift Consultant | AM11: ='SUMMARY (2)'!AN10 -> Acoustic Consultant | AO11: ='SUMMARY (2)'!AP10 -> Services Co-ordination | AQ11: ='SUMMARY (2)'!AR10 -> Tenant Co-ordinator
A15: Professional Fees with 33% Discount
B17: Stage 1 | C17: Inception | D17: =SUM(H17:AQ17) ->  | F17: =D17 ->  | H17: =+PM!E49 ->  | J17: =ROUND(ARCH!E61,2) ->  | L17: =ROUND(QS!E151,2) ->  | N17: =ROUND(STRUC!E118,2) ->  | P17: =ROUND(CIVIL!E118,2) ->  | R17: =MECH!E82 ->  | T17: =ELEC!E80 ->  | V17: =+FIRE!E80 ->  | X17: 0 | Z17: =+'SUMMARY (2)'!$Z$20*10% -> 0 | AB17: =+AT17*5% -> 0 | AD17: 0 | AF17: 0 | AH17: 0 | AJ17: 0 | AK17: =+BC17*5% -> 0 | AM17: 0 | AO17: 0 | AQ17: 0 | AT17: =+'SUMMARY (2)'!AB24 -> 0
B18: Stage 2 | C18: Concept and viability | D18: =SUM(H18:AQ18) ->  | F18: =F17+D18 ->  | H18: =+PM!E50 ->  | J18: =ROUND(ARCH!E62,2) ->  | L18: =ROUND(QS!E152,2) ->  | N18: =ROUND(STRUC!E119,2) ->  | P18: =CIVIL!E119 ->  | R18: =MECH!E83 ->  | T18: =ELEC!E81 ->  | V18: =+FIRE!E81 ->  | X18: 0 | Z18: =+'SUMMARY (2)'!$Z$20*10% -> 0 | AB18: =+AT17*15% -> 0 | AD18: 0 | AF18: 0 | AH18: =+'SUMMARY (2)'!AH20*40% -> 0 | AJ18: 0 | AK18: ='SUMMARY (2)'!AL14*40% -> 0 | AM18: ='SUMMARY (2)'!AN20*50% -> 0 | AO18: ='SUMMARY (2)'!AP20*50% -> 0 | AQ18: ='SUMMARY (2)'!AR20*50% -> 0
B19: Stage 3 | C19: Design development | F19: =F18+D19 ->  | H19: =+PM!E51 ->  | J19: =ROUND(ARCH!E63,2) ->  | L19: =ROUND(QS!E153,2) ->  | N19: =ROUND(STRUC!E120,2) ->  | P19: =ROUND(CIVIL!E120,2) ->  | R19: =ROUND(MECH!E84,2)*50% ->  | T19: =ROUND(ELEC!E82,2)*50% ->  | V19: =+FIRE!E82*50% ->  | X19: 0 | Z19: =+'SUMMARY (2)'!$Z$20*25% -> 0 | AB19: =+AT17*40% -> 0 | AD19: 0 | AF19: 0 | AH19: =+'SUMMARY (2)'!AH20*40% -> 0 | AJ19: ='SUMMARY (2)'!AJ20 -> 0 | AK19: ='SUMMARY (2)'!AL14*40% -> 0 | AM19: ='SUMMARY (2)'!AN20*50% -> 0 | AO19: ='SUMMARY (2)'!AP20*50% -> 0 | AQ19: ='SUMMARY (2)'!AR20*50% -> 0 | AS19: =35+40 -> 75
B20: Stage 4 | C20: Documentation and procurement | F20: =F19+D20 ->  | H20: =+PM!E52 ->  | J20: =+ROUND(ARCH!E64+ARCH!E65,2) ->  | L20: =ROUND(QS!E154,2) ->  | N20: =ROUND(STRUC!E121,2) ->  | P20: =ROUND(CIVIL!E121,2) ->  | R20: =+MECH!E84*50% ->  | T20: =+ELEC!E82*50% ->  | V20: =+FIRE!E82*50% ->  | X20: 0 | Z20: =+'SUMMARY (2)'!$Z$20*10% -> 0 | AB20: =+AT17*0% -> 0 | AD20: 0 | AF20: 0 | AH20: 0 | AJ20: 0 | AK20: =+BC17*0% -> 0 | AM20: 0 | AO20: 0 | AQ20: 0
B21: Stage 5 | C21: Construction | F21: =F20+D21 ->  | H21: =+PM!E53 ->  | J21: =+ROUND(ARCH!E66,2) ->  | L21: =ROUND(QS!E155,2) ->  | N21: =ROUND(STRUC!E122,2) ->  | P21: =ROUND(CIVIL!E122,2) ->  | R21: =ROUND(MECH!E86,2) ->  | T21: =ROUND(ELEC!E84,2) ->  | V21: =+FIRE!E84 ->  | X21: 0 | Z21: =+'SUMMARY (2)'!$Z$20*40% -> 0 | AB21: =+AT17*35% -> 0 | AD21: =+'SUMMARY (2)'!AD24*95% -> 0 | AF21: =+'SUMMARY (2)'!AF24*95% -> 0 | AH21: ='SUMMARY (2)'!AH14*20% -> 0 | AJ21: 0 | AK21: ='SUMMARY (2)'!AL14*20% -> 0 | AM21: =+'SUMMARY (2)'!AM14*95% -> 0 | AO21: =+'SUMMARY (2)'!AO14*95% -> 0 | AQ21: ='SUMMARY (2)'!AQ14*20% -> 0
B22: Stage 6 | C22: Project close out | F22: =F21+D22 ->  | H22: =+PM!E54 ->  | J22: =+ROUND(ARCH!E67,2) ->  | L22: =ROUND(QS!E156,2) ->  | N22: =ROUND(STRUC!E123,2) ->  | P22: =ROUND(CIVIL!E123,2) ->  | R22: =ROUND(MECH!E87,2) ->  | T22: =ROUND(ELEC!E85,2) ->  | V22: =+FIRE!E85 ->  | X22: 0 | Z22: =+'SUMMARY (2)'!$Z$20*5% -> 0 | AB22: =+AT17*5% -> 0 | AD22: =+'SUMMARY (2)'!AD24*5% -> 0 | AF22: =+'SUMMARY (2)'!AF24*5% -> 0 | AH22: 0 | AJ22: 0 | AK22: =+BC17*5% -> 0 | AM22: =+'SUMMARY (2)'!AM14*5% -> 0 | AO22: =+'SUMMARY (2)'!AO14*5% -> 0 | AQ22: 0
D23: =SUM(D17:D22) ->  | F23: =IF(F22=D23," ","ERROR") ->  | H23: =SUM(H17:H22) ->  | J23: =SUM(J17:J22) ->  | L23: =SUM(L17:L22) ->  | N23: =SUM(N17:N22) ->  | P23: =SUM(P17:P22) ->  | R23: =SUM(R17:R22) ->  | T23: =SUM(T17:T22) ->  | V23: =SUM(V17:V22) ->  | X23: =SUM(X17:X22) -> 0 | Z23: =SUM(Z17:Z22) -> 0 | AB23: =SUM(AB17:AB22) -> 0 | AD23: =SUM(AD17:AD22) -> 0 | AF23: =SUM(AF17:AF22) -> 0 | AH23: =SUM(AH17:AH22) -> 0 | AJ23: =SUM(AJ17:AJ22) -> 0 | AK23: =SUM(AK17:AK22) -> 0 | AM23: =SUM(AM17:AM22) -> 0 | AO23: =SUM(AO17:AO22) -> 0 | AQ23: =SUM(AQ17:AQ22) -> 0 | AT23: =+D23-'SUMMARY (2)'!F24 -> 
AT27: =+SUM(H23:AJ23) -> 
AT32: =+AT27-D23 -> 
AU37: 0
B55: ALL CHECKS TO BE = 0 | D55: =SUM(G17:AQ22) ->  | H55: =PM!E55 ->  | J55: =ARCH!E68 ->  | L55: =QS!E157 ->  | N55: =STRUC!E124 ->  | P55: =CIVIL!E124 ->  | R55: =MECH!E88 ->  | T55: =ELEC!E86 ->  | V55: =+FIRE!E86 ->  | X55: 0 | Z55: =+'SUMMARY (2)'!Z20 -> 0 | AB55: =+'SUMMARY (2)'!AB20 -> 0 | AD55: =+'SUMMARY (2)'!AD20 -> 0 | AE55: =+'SUMMARY (2)'!AE20 -> 0 | AF55: =+'SUMMARY (2)'!AF20 -> 0 | AG55: =+'SUMMARY (2)'!AG20 -> 0 | AH55: ='SUMMARY (2)'!AH20 -> 0 | AI55: =+'SUMMARY (2)'!AI20 -> 0 | AJ55: ='SUMMARY (2)'!AJ20 -> 0 | AK55: ='SUMMARY (2)'!AL20 -> 0 | AM55: ='SUMMARY (2)'!AN20 -> 0 | AN55: =+'SUMMARY (2)'!AN20 -> 0 | AO55: ='SUMMARY (2)'!AP20 -> 0 | AP55: =+'SUMMARY (2)'!AP20 -> 0 | AQ55: ='SUMMARY (2)'!AR20 -> 0 | AR55: =+'SUMMARY (2)'!AR20 -> 0
D56: =D55-D23 ->  | H56: =H55-H23 ->  | J56: =J55-J23 ->  | L56: =L55-L23 ->  | N56: =N55-N23 ->  | P56: =P55-P23 ->  | R56: =R55-R23 ->  | T56: =T55-T23 ->  | V56: =V55-V23 ->  | W56: =W55-W23 -> 0 | X56: =X55-X23 -> 0 | Y56: =Y55-Y23 -> 0 | Z56: =Z55-Z23 -> 0 | AB56: =AB55-AB23 -> 0 | AD56: =AD55-AD23 -> 0 | AE56: 0 | AF56: 0 | AG56: 0 | AH56: =AH55-AH23 -> 0 | AI56: 0 | AJ56: 0 | AK56: =AK55-AK23 -> 0 | AM56: =AM55-AM23 -> 0 | AN56: 0 | AO56: 0 | AP56: 0 | AQ56: 0 | AR56: 0
D57: CHECK | H57: CHECK | J57: CHECK | L57: CHECK | N57: CHECK | P57: CHECK | R57: CHECK | T57: CHECK | V57: CHECK | W57: CHECK | X57: CHECK | Y57: CHECK | Z57: CHECK | AB57: CHECK | AC57: CHECK | AD57: CHECK | AE57: CHECK | AF57: CHECK | AG57: CHECK | AH57: CHECK | AI57: CHECK | AJ57: CHECK | AK57: CHECK | AL57: CHECK | AM57: CHECK | AN57: CHECK | AO57: CHECK | AP57: CHECK | AQ57: CHECK | AR57: CHECK
D59: ='SUMMARY (2)'!F20 -> 
D61: R 8,061,000.00
L70: must be zero

Sheet Monthly Cashflow-Summary (hidden)
A1: Renewable Hydrogen Facility (RHF)
A5: PROJECT CASHFLOW
A7: =+TODAY() -> 2026-08-04
B10: PROJECT CASHFLOW
C14: TOTAL | E14: SUBMITTED | F14: CPAP | G14: SUBMITTED | H14: TENDERER | I14: TENDERER | J14: CONSULTANTS | K14: TOTAL | L14: VARIANCE | M14: VARIANCE | N14: VARIANCE | AH14: 4,526,599.19
A15: NO | B15: DESCRIPTION | D15: TENDERER | E15: TENDER | F15: ESCALATION | G15: TENDER | H15: ADJUSTMENT | I15: ADJUSTED | J15: ADJUSTMENT | K15: ADJUSTED | L15: TO | M15: TO | N15: TO
F16: 3500*50
E17: A | F17: B | G17: A + B = C | H17: D | I17: C + D = E | J17: F | K17: E + F | R17: PROJECTED CASHFLOW PER MONTH
R18: 2025-03-01 | S18: 2025-04-01 | T18: 2025-05-01 | U18: 2025-06-01 | V18: 2025-07-01 | W18: 2025-08-01 | X18: 2025-09-01 | Y18: 2025-10-01 | Z18: 2025-11-01 | AA18: 2025-12-01 | AB18: 2026-01-01 | AC18: 2026-02-01 | AD18: 2026-03-01 | AE18: 2026-04-01 | AF18: 2026-05-01
C19: BUDGET | P19: ESTIMATED FINAL BUDGET | R19: Detailed Designs | U19: Design Review and Finalization | W19: Procurement and Construction | AE19: Commissioning and testing
AG22: =+SUM(R22:AF22) -> 0% | AH22: Checks
A24: 1 | B24: Procurement and Construction Work | C24: =+Summary!F13+Summary!F17+Summary!F19+Summary!F21+Summary!F23 -> 0 | P24: 153,868,110.63 | W24: =+'CASHFLOW-CONSTRUCTION CONS'!G42 -> 0 | X24: =+'CASHFLOW-CONSTRUCTION CONS'!G43 -> 0 | Y24: =+'CASHFLOW-CONSTRUCTION CONS'!G44 -> 0 | Z24: =+'CASHFLOW-CONSTRUCTION CONS'!G45 -> 0 | AA24: =+'CASHFLOW-CONSTRUCTION CONS'!G46 -> 0 | AB24: =+'CASHFLOW-CONSTRUCTION CONS'!G47 -> 0 | AC24: =+'CASHFLOW-CONSTRUCTION CONS'!G48 -> 0 | AD24: =+'CASHFLOW-CONSTRUCTION CONS'!G49 -> 0 | AG24: =SUM(R24:AF24) -> 0 | AH24: =+AG24-C24 -> 0
AG25: =SUM(R25:AF25) -> 0 | AH25: =+AG25-C25 -> 0
B26: Section 01 - Preliminaries & General | AG26: 0 | AH26: 0
B27: Section 03 - Civil Works | AG27: 0 | AH27: 0
B28: Section 04 - Structures | AG28: 0 | AH28: 0
B29: Section 05 - Mechanical & Fire | AG29: 0 | AH29: 0
B30: Section 06 - Electrical Installations | AG30: 0 | AH30: 0
AG31: 0 | AH31: 0
A32: 2 | B32: Designing Fees | M32: 1,752,192.62 | AG32: 0 | AH32: 0
A33: 2.1 | B33: Geotechnical Studies | C33: =+'Designing & Fees'!F14 -> 0 | M33: 2,295,882.89 | P33: 6,400,188.00 | R33: =+C33/2 -> 0 | S33: =R33 -> 0 | AG33: 0 | AH33: 0 | AK33: =V33/16 -> 0
A34: 2.2 | B34: Traffic Study | C34: =+'Designing & Fees'!F16 -> 0 | M34: 2,984,399.71 | P34: 4,107,883.00 | R34: =+C34/2 -> 0 | S34: =R34 -> 0 | AG34: 0 | AH34: 0
AG35: 0 | AH35: 0
A36: 3 | B36: Professional Fees | AG36: 0 | AH36: 0
A37: 3.1 | B37: Civil Engineering | C37: =+'Designing & Fees'!F20 -> 0 | P37: 249,998.73 | R37: =+'STAGE BREAKDOWN'!P17 ->  | S37: =+'STAGE BREAKDOWN'!P18 ->  | T37: =+'STAGE BREAKDOWN'!P19 ->  | U37: =+'STAGE BREAKDOWN'!P20/2 ->  | V37: =+U37 ->  | W37: =+'STAGE BREAKDOWN'!P21/8 ->  | X37: =+W37 ->  | Y37: =+X37 ->  | AE37: =+'STAGE BREAKDOWN'!P22/2 ->  | AF37: =+AE37 -> 
A38: 3.2 | B38: Architect | C38: =+'Designing & Fees'!F22 -> 0 | R38: =+'STAGE BREAKDOWN'!J17 ->  | S38: =+'STAGE BREAKDOWN'!J18 ->  | T38: =+'STAGE BREAKDOWN'!J19 ->  | U38: =+'STAGE BREAKDOWN'!J20/2 ->  | V38: =+U38 ->  | W38: =+'STAGE BREAKDOWN'!J21/8 ->  | Y38: =+X38 ->  | AE38: =+'STAGE BREAKDOWN'!J22/2 ->  | AF38: =+AE38 -> 
A39: 3.3 | B39: Mechanical Engineering (HVAC, Fire and Wet Services) | C39: =+'Designing & Fees'!#REF! ->  | P39: 12,240.00 | R39: =+'STAGE BREAKDOWN'!R17 ->  | S39: =+'STAGE BREAKDOWN'!R18 ->  | T39: =+'STAGE BREAKDOWN'!R19 ->  | U39: =+'STAGE BREAKDOWN'!R20/2 ->  | V39: =+U39 ->  | W39: =+'STAGE BREAKDOWN'!R21/8 ->  | Y39: =+X39 ->  | AE39: =+'STAGE BREAKDOWN'!R22/2 ->  | AF39: =+AE39 -> 
A40: 3.4 | B40: Occupational Health and Safety agent | C40: =+'Designing & Fees'!#REF! ->  | W40: =+C40/8 ->  | Y40: =+X40 -> 
A41: 3.5 | B41: Electrical Engineering | C41: =+'Designing & Fees'!#REF! ->  | P41: 127,499.99 | R41: =+'STAGE BREAKDOWN'!T17 ->  | S41: =+'STAGE BREAKDOWN'!T18 ->  | T41: =+'STAGE BREAKDOWN'!T19 ->  | U41: =+'STAGE BREAKDOWN'!T20/2 ->  | V41: =+U41 ->  | W41: =+'STAGE BREAKDOWN'!T21/8 ->  | AE41: =+'STAGE BREAKDOWN'!T22/2 ->  | AF41: =+AE41 -> 
A42: 3.6 | B42: Quantity Surveyor | C42: =+'Designing & Fees'!#REF! ->  | R42: =+'STAGE BREAKDOWN'!L17 ->  | S42: =+'STAGE BREAKDOWN'!L18 ->  | T42: =+'STAGE BREAKDOWN'!L19 ->  | U42: =+'STAGE BREAKDOWN'!L20/2 ->  | V42: =+U42 ->  | W42: =+'STAGE BREAKDOWN'!L21/8 ->  | AE42: =+'STAGE BREAKDOWN'!L22/2 ->  | AF42: =+AE42 -> 
A43: 3.7 | B43: Project Manager | C43: =+'Designing & Fees'!#REF! ->  | R43: =+'STAGE BREAKDOWN'!H17 ->  | S43: =+'STAGE BREAKDOWN'!H18 ->  | T43: =+'STAGE BREAKDOWN'!H19 ->  | U43: =+'STAGE BREAKDOWN'!H20/2 ->  | V43: =+U43 ->  | W43: =+'STAGE BREAKDOWN'!H21/8 ->  | AE43: =+'STAGE BREAKDOWN'!H22/2 ->  | AF43: =+AE43 -> 
A44: 3.8 | B44: Fire Engineer | C44: =+'Designing & Fees'!#REF! ->  | R44: =+'STAGE BREAKDOWN'!V17 ->  | S44: =++'STAGE BREAKDOWN'!V18 ->  | T44: =+'STAGE BREAKDOWN'!V19 ->  | U44: =+'STAGE BREAKDOWN'!V20/2 ->  | V44: =+U44 ->  | W44: =+'STAGE BREAKDOWN'!V21/8 ->  | AE44: =+'STAGE BREAKDOWN'!V22/2 ->  | AF44: =+AE44 -> 
AG45: 0 | AH45: 0
A46: 4.1 | B46: Testing, Commissioning & Hand-over | C46: =+'TESTING, COMMISIONING MAINTENAN'!F13 -> 0 | AE46: =+C46*0.6 -> 0 | AF46: =+C46*0.4 -> 0 | AG46: 0 | AH46: 0
A47: 4.2 | B47: Training of Eskom Staff | C47: =+'TESTING, COMMISIONING MAINTENAN'!F15 -> 0 | AE47: =+C47*0.6 -> 0 | AF47: =+C47*0.4 -> 0 | AG47: 0 | AH47: 0
A48: 4.3 | B48: Allow for the maintenance and operation of the new plant, including manuals | C48: =+'TESTING, COMMISIONING MAINTENAN'!F17 -> 0 | AF48: =+C48 -> 0 | AG48: 0 | AH48: 0
AG49: 0 | AH49: 0
AG50: 0 | AH50: 0
A51: 5 | B51: CONTIGENCY | AG51: 0 | AH51: 0
A52: 5.1 | B52: Project Contingency | C52: =+Summary!F30 -> 0 | P52: 2,014,755.90 | R52: =+C52/10 -> 0 | S52: =R52 -> 0 | T52: =S52 -> 0 | U52: 0 | V52: 0 | W52: 0 | X52: 0 | Y52: 0 | Z52: 0 | AA52: 0 | AG52: 0 | AH52: 0
AG53: 0 | AH53: 0
B54: TOTAL COST PER MONTH (EXCL VAT) | C54: =SUM(C23:C53) ->  | P54: =SUM(P23:P53)-#REF! ->  | R54: =SUM(R23:R53) -> 
B56: CUMMULATIVE COST PER MONTH | C56: =+C54 ->  | P56: =+C56-P54 ->  | R56: =R54 ->  | S56: =+R56+S54 ->  | T56: =+S56+T54 -> 
C59: NOTES | AG59: =+AF56-C56 -> 
C61: Stage 1 - Stage 5.11 Budget
C63: Amount Paid to Date
B65: a) | C65: Balance outstanding
B67: b) | C67: 1st - Six Months of Stage 5
B69: c) | C69: Assessments Rates for May & June 19
C71: TOTAL ( a + b )
R72: Total (excl. VAT)
R73: VAT @15% | AG73: =+AF56-C56 -> 
R74: Total (incl. VAT)
R76: Advance 1 Drawn - Unutilized (Balance per Adowa Bank)
R78: Diff
R80: Reconciling items (incl. VAT)
R81: (Items utilized through change of use of funds)
R82: SDP/S7-6 Plan Approval Fee
R83: Fire Plan Approval Fee
R84: NHBRC Submission Fee
R85: Green building council - Project Certification
R88: Net Diff
R89: %Diff
AG91: =+AF56-AG54 -> 
R93: -193,183,823
C97: =+C56-Summary!F32 -> 
A124: =+A122+1 -> 1
A125: 1
A126: 2
A127: 2
A128: 3
A129: 3
A130: 4
A131: 4
A132: 5
A133: 5
A134: 6
A135: 6
A136: 7
A137: 7
A138: 8
A139: 8
A140: 9
A141: 9
A142: 10
A143: 10
A144: 11
A145: 11
A146: 12
A147: 12
A148: 13
A149: 13
A150: 14
A151: 14
A152: 15
A153: 15
A154: 16
A155: 16
A156: 17
A157: 17
A158: 18
A159: 18
A160: 19
A161: 19
A162: 20
A163: 20
A164: 21
A165: 21
A166: 22
A167: 22
R170: =+R33+R34+#REF!+#REF!+#REF!+#REF!+#REF!+#REF!+R37+#REF!+R39+#REF!+#REF!+R41+#REF! -> 
B172: VAT | C172: =+C54*14% ->  | D172: 0 | E172: 0 | F172: 0 | G172: 0 | H172: 0 | I172: 0 | J172: 0 | K172: 0 | L172: 0 | M172: 0 | N172: 0 | R172: =+R54*14% ->  | W172: =+W54*14% ->  | AH172: =+AH54*14% -> 0
C173: =SUM(C54:C172) ->  | D173: 0 | E173: 0 | F173: 0 | G173: 0 | H173: 0 | I173: 0 | J173: 0 | K173: 0 | L173: 0 | M173: 0 | N173: 0 | R173: =SUM(R54:R172) ->  | V173: =SUM(V54:V172) ->  | W173: =SUM(W54:W172) ->  | AH173: =+AH172+AH54 -> 0
B177: Budget | R177: 18820814.25
R178: 8233847.64
R179: =+R177+R178 -> R27,054,661.89
R181: =+R170-R179 -> 
B182: =+C54 ->  | C182: BUDGET
B184: 229,452,276.01 | C184: No.5 Rev 8
B186: =+B182-B184 ->  | C186: Should be zero - dm fee updated
C189: 101623035.4 | R189: PPS NO18 REV0 PAID TO DATE
R190: land
C193: =+C189-R54 ->  | R193: Should be zero

Sheet CASHFLOW-CONSTRUCTION CONS (hidden)
B2: =+'TESTING, COMMISIONING MAINTENAN'!A1 -> Engineer, Procure, Construct and Commission a 50 to 100 kW thermal Waste-to-Energy Test Facility at Eskom Research, Testing and Innovation Centre | M2: 7
B4: CONSTRUCTION CASHFLOW
B6: =+TODAY() -> 2026-08-04
B8: PRINCIPAL CONTRACTOR | H8: tbc
B9: CONTRACT COMMENCEMENT DATE | F9: A | G9: : | H9: 2025-08-01
B10: COMPLETION DATE | F10: B | G10: : | H10: 2026-02-01
B11: FINAL COMPLETION | H11: =H10+60 -> 2026-04-02
B12: LAST PRINCIPAL CONTRACT VALUATION DATE | F12: C | G12: : | H12: =H11+5 -> 2026-04-07
B13: CURRENT ESTIMATED CONSTRUCTION COST (BUILDERS WORK ONLY) | F13: D | G13: : | H13: =+'Monthly Cashflow-Summary'!C24 -> R 0.00
B14: PAYMENT PERIOD - Days | F14: E | G14: : | H14: =H12-H9 -> 249
B15: PAYMENT PERIOD - Months | F15: F | H15: =ROUND(H14/30.5,0) -> 8
E17: NORMAL | F17: UPPER LIMIT | G17: LOWER LIMIT
D18: Alpha | E18: 1.86336 | F18: 1.96259 | G18: 1.75345
D19: Beta | E19: 2.27944 | F19: 1.77421 | G19: 2.58507
B21: 1.0 PROGRESSIVE CERTIFICATE VALUE (CUMULATIVE)
B22: PAYMENT NO | C22: VALUATION DATES | D22: PAYMENT DATES | E22: PAYMENT PERIOD EXPIRED (DAYS) | F22: CONSTRUCTION NORMAL | G22: CONSTRUCTION UPPER LIMIT | H22: CONSTRUCTION LOWER LIMIT | I22: HIGH CAPITAL VALUE ITEMS | J22: "NORMAL" PROJECTED CONSTRUCTION CASHFLOW INCLUDING HIGH CAPITAL VALUE ITEMS | K22: ACTUAL AMOUNT | L22: PRINICIPAL CONTRACTOR PROPOSED CASHFLOW
C23: G | D23: H | E23: I = G - A | I23: Y | J23: Z = X + Y
B24: 0 | D24: 0 | E24: 0 | F24: 0 | G24: 0 | H24: 0 | L24: 0
B25: 1 | C25: =+H9+14 -> 2025-08-15 | D25: =+C25+15 -> 2025-08-30 | E25: =C25-$H$9 -> 14 | F25: =(1-((1-(E25/$H$14))^$E$18))^$E$19*$H$13 -> R 0.00 | G25: =(1-((1-(E25/$H$14))^$F$18))^$F$19*$H$13 -> R 0.00 | H25: =(1-((1-(E25/$H$14))^$G$18))^$G$19*$H$13 -> R 0.00 | I25: R 0.00 | J25: =I25+F25 -> R 0.00 | M25: R14,279,345.57 | N25: 170057.74 | O25: 636077.9896 | P25: R 869,473.20
B26: 2 | C26: =C25+31 -> 2025-09-15 | D26: =+C26+16 -> 2025-10-01 | E26: 45 | F26: R 0.00 | G26: =(1-((1-(E26/$H$14))^$F$18))^$F$19*$H$13 -> R 0.00 | H26: R 0.00 | I26: R 0.00 | J26: R 0.00 | M26: R1,795,811.31 | N26: 114405.22
B27: 3 | C27: =C26+31 -> 2025-10-16 | D27: =C27+15 -> 2025-10-31 | E27: 76 | F27: R 0.00 | G27: R 0.00 | H27: R 0.00 | M27: R413,742.85 | N27: 76467.75
B28: 4 | C28: =C27+30 -> 2025-11-15 | D28: =C28+16 -> 2025-12-01 | E28: 106 | F28: R 0.00 | G28: R 0.00 | H28: R 0.00 | M28: R3,632,668.44
B29: 5 | C29: =C28+31 -> 2025-12-16 | D29: =C29+15 -> 2025-12-31 | E29: 137 | F29: R 0.00 | G29: R 0.00 | H29: R 0.00 | M29: R84,947.49
B30: 6 | C30: =C29+30 -> 2026-01-15 | D30: =C30+10 -> 2026-01-25 | E30: 167 | F30: R 0.00 | G30: R 0.00 | H30: R 0.00 | M30: 1,752,192.62
B31: 7 | C31: =C30+31 -> 2026-02-15 | D31: =C31+16 -> 2026-03-03 | E31: 198 | F31: R 0.00 | G31: R 0.00 | H31: R 0.00 | M31: 2,295,882.89 | N31: =+G30 -> R0.00
B32: 8 | C32: =+C31+51 -> 2026-04-07 | D32: =C32+14 -> 2026-04-21 | E32: 249 | F32: R 0.00 | G32: R 0.00 | H32: R 0.00 | I32: R 0.00 | J32: R 0.00 | M32: 2,984,399.71
M36: =+F32-H13 -> 0.0000000000
B38: 2.0 NETT CERTIFICATE VALUES (MONTHLY)
B39: PAYMENT NO | C39: VALUATION DATES | D39: PAYMENT DATES | E39: CONTRACT PERIOD EXPIRED (DAYS) | F39: NORMAL CONSTRUCTION NET PAYMENTS | G39: =G22 -> CONSTRUCTION UPPER LIMIT | H39: =H22 -> CONSTRUCTION LOWER LIMIT | I39: HIGH CAPITAL VALUE ITEMS | J39: "NORMAL" PROJECTED CONSTRUCTION CASHFLOW INCLUDING HIGH CAPITAL VALUE ITEMS | K39: ACTUAL | L39: PRINICIPAL CONTRACTOR PROPOSED CASHFLOW
C40: G | D40: H | E40: I = G - A | I40: Y | J40: Z = X + Y
B41: =+B24 -> 0 | E41: 0 | F41: 0 | G41: 0 | H41: 0 | L41: 0
B42: 1 | C42: =+C25 -> 2025-08-15 | D42: 2025-08-30 | E42: =C42-$H$9 -> 14 | F42: =+F25 -> R 0.00 | G42: =+G25-G24 -> R 0.00 | H42: =+H25 -> R 0.00 | I42: =#REF! ->  | J42: =F42+I42 -> 
B43: 2 | C43: 2025-09-15 | D43: 2025-10-01 | E43: 45 | F43: =+F26-F25 -> R 0.00 | G43: R 0.00 | H43: =+H26-H25 -> R 0.00 | I43: =I25-#REF! -> 
B44: 3 | C44: 2025-10-16 | D44: 2025-10-31 | E44: 76 | F44: R 0.00 | G44: R 0.00 | H44: R 0.00 | I44: =I26-I25 -> R 0.00 | J44: R 0.00 | K44: =+K27 -> R 0.00
B45: 4 | C45: 2025-11-15 | D45: 2025-12-01 | E45: 106 | F45: R 0.00 | G45: R 0.00 | H45: R 0.00 | I45: =I26-I23 ->  | K45: =+K28-K27 -> R 0.00
B46: 5 | C46: 2025-12-16 | D46: 2025-12-31 | E46: 137 | F46: R 0.00 | G46: R 0.00 | H46: R 0.00 | I46: =I25-#REF! ->  | K46: =+K29-K28 -> R 0.00
B47: 6 | C47: 2026-01-15 | D47: 2026-01-25 | E47: 167 | F47: R 0.00 | G47: R 0.00 | H47: R 0.00 | I47: =I26-I25 -> R 0.00 | J47: R 0.00 | K47: =+K30-K29 -> R 0.00
B48: 7 | C48: 2026-02-15 | D48: 2026-03-03 | E48: 198 | F48: R 0.00 | G48: R 0.00 | H48: R 0.00 | I48: =I27-I26 ->  | K48: =+K31-K30 -> R 0.00
B49: 8 | C49: 2026-04-07 | D49: 2026-04-21 | E49: 249 | F49: R 0.00 | G49: R 0.00 | H49: R 0.00 | I49: =I28-I27 ->  | K49: =+K32-K31 -> R 0.00
D51: TOTAL | F51: =SUM(F42:F50) -> R 0.00 | G51: =SUM(G42:G50) -> R 0.00 | H51: =SUM(H42:H50) -> R 0.00 | I51: =SUM(I42:I49) ->  | J51: =SUM(J42:J49) ->  | K51: =SUM(K42:K50) -> R 0.00 | L51: =SUM(L42:L49) -> R 0.00 | M51: =G51-H13 -> 0.0000000
B54: 3.0 ESTIMATED CONSTRUCTION CASHFLOW CHART
B87: NOTES:
B89: Payment 1 - 3 | C89: Demolitions
B90: Payment 4 - 21 | C90: Bulk Earthworks, Piling and Builderswork
B91: Month 3 | C91: Piling
B92: Month 4 - 19 | C92: Builderswork
B94: Total Anticipated Expenditure for the first - six montths | C94: =+G30 -> R 0.00
B100: 4.0 Basis of cashflow and assumptions
B102: * All payments are based on 24 calendar days from date of interim payment certificate issue
B103: * Payment certificate issued by the 7th and payment due 24 calendar days thereafter
B104: * Excludes VAT
B105: * This does include/reflect other financial commitments of the Principal contractor (e.g.,Construction guarantees,Forward Cover taken out or Letters of Credit to suppliers)
B106: * Includes Contractors December holidays
B107: * Based on Principal Contractor apointment value, including no variations orders approved
B108: * Exclude any other capital costs i.e. cost of capital, land cost, professional fees & disbursements, general costs, contingencies etc.
B109: * Prinicpal Contractor proposed cashflow based on information provided by the Principal Contractor

Sheet BREAKDOWN (hidden)
A1: =+'STAGE BREAKDOWN'!A1 -> Engineer, Procure, Construct and Commission a 50 to 100 kW thermal Waste-to-Energy Test Facility at Eskom Research, Testing and Innovation Centre
A2: =+'STAGE BREAKDOWN'!A2 -> Revision Rev 0
G19: Project Manager | J19: Architect | M19: Quantity Surveyor | P19: Structural Engineer | S19: Civil Engineer | V19: Mechanical Engineer | Y19: Electrical Engineer | AB19: Rational Fire Engineer | AE19: Fire Engineer | AH19: Wet Services | AK19: Landscape Architect | AN19: Sundry Fees Allowance
A20: No. | B20: Element | F20: Total | M20: Quantity Surveyor
G22: % | H22: Value for fee purposes | J22: % | K22: Value for fee purposes | M22: % | N22: Value for fee purposes | P22: % | Q22: Value for fee purposes | S22: % | T22: Value for fee purposes | V22: % | W22: Value for fee purposes | Y22: % | Z22: Value for fee purposes | AB22: % | AC22: Value for fee purposes | AE22: % | AF22: Value for fee purposes | AH22: % | AI22: Value for fee purposes | AK22: % | AL22: Value for fee purposes | AN22: % | AO22: Value for fee purposes
AQ24: DO NOT DELETE
A25: 1.0 | B25: BUILDING WORKS & FINISHES ETC., | AS25: ARCH as Principal Agent | AT25: FALSE | AU25: =((AT25*1)) -> 0.00
A26: =A25+0.01 -> 1.01 | B26: Civil Works | F26: =+Summary!F17 -> R0 | G26: 50% | H26: =$F$26*G26 -> R0 | J26: 50% | K26: =$F$26*J26 -> R0 | M26: 50% | N26: =$F$26*M26 -> R0 | P26: 0% | Q26: =$F$26*P26 -> R0 | S26: 100% | T26: =$F$26*S26 -> R0 | V26: 0% | W26: =$F$26*V26 -> R0 | Y26: 0% | Z26: =$F$26*Y26 -> R0 | AB26: 5% | AC26: =$F$26*AB26 -> R0 | AE26: 0% | AF26: =$F$26*AE26 -> R0 | AH26: 0% | AI26: =$F$26*AH26 -> R0 | AK26: 0% | AL26: =$F$26*AK26 -> R0 | AN26: 5% | AO26: =$F$26*AN26 -> R0
A27: =A26+0.01 -> 1.02 | B27: Structures | F27: =+Summary!F19 -> R0 | G27: 50% | H27: =$F$27*G27 -> R0 | J27: 50% | K27: =$F$27*J27 -> R0 | M27: 50% | N27: =$F$27*M27 -> R0 | P27: 0% | Q27: =$F$27*P27 -> R0 | S27: 100% | T27: =$F$27*S27 -> R0 | V27: 0% | W27: =$F$27*V27 -> R0 | Y27: 100% | Z27: =$F$27*Y27 -> R0 | AB27: 0% | AC27: =$F$27*AB27 -> R0 | AE27: 100% | AF27: =$F$27*AE27 -> R0 | AH27: 0% | AI27: =$F$27*AH27 -> R0 | AK27: 0% | AL27: =$F$27*AK27 -> R0 | AN27: 5% | AO27: =$F$27*AN27 -> R0 | AS27: Alterations project | AT27: TRUE | AU27: =((AT27*1)) -> 1.00
A28: =A27+0.01 -> 1.03 | B28: Hydrogen Plant | F28: =+Summary!F21 -> R0 | G28: 25% | H28: =$F$28*G28 -> R0 | J28: 25% | K28: =$F$28*J28 -> R0 | M28: 30% | N28: =$F$28*M28 -> R0 | P28: 0% | Q28: =$F$28*P28 -> R0 | S28: 25% | T28: =$F$28*S28 -> R0 | V28: 100% | W28: =$F$28*V28 -> R0 | Y28: 25% | Z28: =$F$28*Y28 -> R0 | AB28: 0% | AC28: =$F$28*AB28 -> R0 | AE28: 25% | AF28: =$F$28*AE28 -> R0 | AH28: 0% | AI28: =$F$28*AH28 -> R0 | AK28: 0% | AL28: =$F$28*AK28 -> R0 | AN28: 5% | AO28: =$F$28*AN28 -> R0 | AS28: Restoration project | AT28: FALSE | AU28: 0.00
A29: =A28+0.01 -> 1.04 | B29: Electrical Installations | F29: =+Summary!F23 -> R0 | G29: 100% | H29: =$F$29*G29 -> R0 | J29: 50% | K29: =$F$29*J29 -> R0 | M29: 50% | N29: =$F$29*M29 -> R0 | P29: 0% | Q29: =$F$29*P29 -> R0 | S29: 50% | T29: =$F$29*S29 -> R0 | V29: 50% | W29: =$F$29*V29 -> R0 | Y29: 100% | Z29: =$F$29*Y29 -> R0 | AB29: 0% | AC29: =$F$29*AB29 -> R0 | AE29: 0% | AF29: =$F$29*AE29 -> R0 | AH29: 0% | AI29: =$F$29*AH29 -> R0 | AK29: 0% | AL29: =$F$29*AK29 -> R0 | AN29: 5% | AO29: =$F$29*AN29 -> R0 | AS29: Redecoration fee | AT29: FALSE | AU29: 0.00
A32: 2.0 | B32: Main Preliminaries | C32: =+D32/F32 ->  | D32: =+Summary!F13 -> 0 | F32: =+SUM(F26:F29) -> R 0 | G32: =$C$32 ->  | H32: =$C$32*(SUM(H26:H29)) ->  | J32: =$C$32 ->  | K32: =$C$32*(SUM(K26:K29)) ->  | M32: =$C$32 ->  | N32: =$C$32*(SUM(N26:N29)) ->  | P32: =$C$32 ->  | Q32: =$C$32*(SUM(Q26:Q29)) ->  | S32: =$C$32 ->  | T32: =$C$32*(SUM(T26:T29)) ->  | V32: =$C$32 ->  | W32: =$C$32*(SUM(W26:W29)) ->  | Y32: =$C$32 ->  | Z32: =$C$32*(SUM(Z26:Z29)) ->  | AB32: =$C$32 ->  | AC32: =$C$32*(SUM(AC26:AC29)) ->  | AE32: =+Y32 ->  | AF32: =$C$32*(SUM(AF26:AF29)) ->  | AH32: 0.0% | AI32: =$C$32*(SUM(AI26:AI29)) ->  | AK32: =$C$32 ->  | AL32: =$C$32*(SUM(AL26:AL29)) ->  | AN32: =$C$32 ->  | AO32: =$C$32*(SUM(AO26:AO29)) ->  | AP32: 17,667,657
A34: =+A32+0.01 -> 2.01 | B34: Contingencies | F34: R 1,888,189 | G34: 50% | H34: =$F$34*G34 -> R 944,095 | J34: =+G34 -> 50% | K34: =$F$34*J34 -> R 944,095 | M34: =+J34 -> 50% | N34: =$F$34*M34 -> R 944,095 | P34: 0% | Q34: =$F$34*P34 -> R 0 | S34: =+P34 -> 0% | T34: =$F$34*S34 -> R 0 | V34: =+S34 -> 0% | W34: =$F$34*V34 -> R 0 | Y34: =+V34 -> 0% | Z34: =$F$34*Y34 -> R 0 | AB34: 0% | AC34: =$F$34*AB34 -> R 0 | AE34: =+Y34 -> 0% | AF34: =$F$34*AE34 -> R 0 | AH34: 0% | AI34: =$F$34*AH34 -> R 0 | AK34: 100% | AL34: =$F$34*AK34 -> R 1,888,189 | AN34: 100% | AO34: =$F$34*AN34 -> R 1,888,189
A36: ALTERATIONS
A38: 5 | B38: Alterations | F38: R 0 | G38: 100% | H38: =$F$38*G38 -> R 0 | J38: 100% | K38: =$F$38*J38 -> R 0 | M38: 100% | N38: =$F$38*M38 -> R 0 | P38: 40% | Q38: =$F$38*P38 -> R 0 | S38: 10% | T38: =$F$38*S38 -> R 0 | V38: 0% | W38: =$F$38*V38 -> R 0 | Y38: 0% | Z38: =$F$38*Y38 -> R 0 | AB38: 0% | AC38: =$F$38*AB38 -> R 0 | AE38: 100% | AF38: =$F$38*AE38 -> R 0 | AH38: 100% | AI38: =$F$38*AH38 -> R 0 | AK38: 100% | AL38: =$F$38*AK38 -> R 0 | AN38: 100% | AO38: =$F$38*AN38 -> R 0
A40: EXTERNAL WORKS AND SERVICES
A42: =A38+1 -> 6 | B42: Bulk Earthworks | F42: R 0 | G42: 100% | H42: =$F$42*G42 -> R 0 | J42: 100% | K42: =$F$42*J42 -> R 0 | M42: 100% | N42: =$F$42*M42 -> R 0 | P42: 0% | Q42: =$F$42*P42 -> R 0 | S42: 100% | T42: =$F$42*S42 -> R 0 | V42: 0% | W42: =$F$42*V42 -> R 0 | Y42: 0% | Z42: =$F$42*Y42 -> R 0 | AB42: 0% | AC42: =$F$42*AB42 -> R 0 | AE42: 100% | AF42: =$F$42*AE42 -> R 0 | AH42: 100% | AI42: =$F$42*AH42 -> R 0 | AK42: 100% | AL42: =$F$42*AK42 -> R 0 | AN42: 100% | AO42: =$F$42*AN42 -> R 0
A43: =A42+1 -> 7 | B43: Soil Drainage | F43: R 0 | G43: 100% | H43: =$F$43*G43 -> R 0 | J43: 100% | K43: =$F$43*J43 -> R 0 | M43: 100% | N43: =$F$43*M43 -> R 0 | P43: 0% | Q43: =$F$43*P43 -> R 0 | S43: 100% | T43: =$F$43*S43 -> R 0 | V43: 0% | W43: =$F$43*V43 -> R 0 | Y43: 0% | Z43: =$F$43*Y43 -> R 0 | AB43: 0% | AC43: =$F$43*AB43 -> R 0 | AE43: 100% | AF43: =$F$43*AE43 -> R 0 | AH43: 100% | AI43: =$F$43*AH43 -> R 0 | AK43: 100% | AL43: =$F$43*AK43 -> R 0 | AN43: 100% | AO43: =$F$43*AN43 -> R 0
A44: =A43+1 -> 8 | B44: Demolitions | F44: R 0 | G44: 100% | H44: =$F$44*G44 -> R 0 | J44: 100% | K44: =$F$44*J44 -> R 0 | M44: 100% | N44: =$F$44*M44 -> R 0 | P44: 0% | Q44: =$F$44*P44 -> R 0 | S44: 0% | T44: =$F$44*S44 -> R 0 | V44: 0% | W44: =$F$44*V44 -> R 0 | Y44: 0% | Z44: =$F$44*Y44 -> R 0 | AB44: 0% | AC44: =$F$44*AB44 -> R 0 | AE44: 100% | AF44: =$F$44*AE44 -> R 0 | AH44: 100% | AI44: =$F$44*AH44 -> R 0 | AK44: 100% | AL44: =$F$44*AK44 -> R 0 | AN44: 100% | AO44: =$F$44*AN44 -> R 0
A45: =A44+1 -> 9 | B45: Podium, Roads, Parking & Paving | F45: R 0 | G45: 100% | H45: =$F$45*G45 -> R 0 | J45: 100% | K45: =$F$45*J45 -> R 0 | M45: 100% | N45: =$F$45*M45 -> R 0 | P45: 0% | Q45: =$F$45*P45 -> R 0 | S45: 100% | T45: =$F$45*S45 -> R 0 | V45: 0% | W45: =$F$45*V45 -> R 0 | Y45: 0% | Z45: =$F$45*Y45 -> R 0 | AB45: 0% | AC45: =$F$45*AB45 -> R 0 | AE45: 100% | AF45: =$F$45*AE45 -> R 0 | AH45: 100% | AI45: =$F$45*AH45 -> R 0 | AK45: 100% | AL45: =$F$45*AK45 -> R 0 | AN45: 100% | AO45: =$F$45*AN45 -> R 0
A46: 10 | B46: Civil Services | F46: R 0 | G46: 100% | H46: =$F$46*G46 -> R 0 | J46: 100% | K46: =$F$46*J46 -> R 0 | M46: 100% | N46: =$F$46*M46 -> R 0 | P46: 0% | Q46: =$F$46*P46 -> R 0 | S46: 0% | T46: =$F$46*S46 -> R 0 | V46: 0% | W46: =$F$46*V46 -> R 0 | Y46: 0% | Z46: =$F$46*Y46 -> R 0 | AB46: 0% | AC46: =$F$46*AB46 -> R 0 | AE46: 100% | AF46: =$F$46*AE46 -> R 0 | AH46: 100% | AI46: =$F$46*AH46 -> R 0 | AK46: 100% | AL46: =$F$46*AK46 -> R 0 | AN46: 100% | AO46: =$F$46*AN46 -> R 0
A47: 11 | B47: Perimeter walling, fencing | F47: R 0 | G47: 100% | H47: =$F$47*G47 -> R 0 | J47: 100% | K47: =$F$47*J47 -> R 0 | M47: 100% | N47: =$F$47*M47 -> R 0 | P47: 0% | Q47: =$F$47*P47 -> R 0 | S47: 0% | T47: =$F$47*S47 -> R 0 | V47: 0% | W47: =$F$47*V47 -> R 0 | Y47: 0% | Z47: =$F$47*Y47 -> R 0 | AB47: 0% | AC47: =$F$47*AB47 -> R 0 | AE47: 100% | AF47: =$F$47*AE47 -> R 0 | AH47: 100% | AI47: =$F$47*AH47 -> R 0 | AK47: 100% | AL47: =$F$47*AK47 -> R 0 | AN47: 100% | AO47: =$F$47*AN47 -> R 0
A48: 12 | B48: Landscaping | F48: R 0 | G48: 100% | H48: =$F$48*G48 -> R 0 | J48: 100% | K48: =$F$48*J48 -> R 0 | M48: 100% | N48: =$F$48*M48 -> R 0 | P48: 0% | Q48: =$F$48*P48 -> R 0 | S48: 0% | T48: =$F$48*S48 -> R 0 | V48: 0% | W48: =$F$48*V48 -> R 0 | Y48: 0% | Z48: =$F$48*Y48 -> R 0 | AB48: 0% | AC48: =$F$48*AB48 -> R 0 | AE48: 100% | AF48: =$F$48*AE48 -> R 0 | AH48: 100% | AI48: =$F$48*AH48 -> R 0 | AK48: 100% | AL48: =$F$48*AK48 -> R 0 | AN48: 100% | AO48: =$F$48*AN48 -> R 0
A49: 13 | B49: External Electrical | F49: R 0 | G49: 100% | H49: =$F$49*G49 -> R 0 | J49: 100% | K49: =$F$49*J49 -> R 0 | M49: 100% | N49: =$F$49*M49 -> R 0 | P49: 0% | Q49: =$F$49*P49 -> R 0 | S49: 0% | T49: =$F$49*S49 -> R 0 | V49: 0% | W49: =$F$49*V49 -> R 0 | Y49: 100% | Z49: =$F$49*Y49 -> R 0 | AB49: 0% | AC49: =$F$49*AB49 -> R 0 | AE49: 100% | AF49: =$F$49*AE49 -> R 0 | AH49: 100% | AI49: =$F$49*AH49 -> R 0 | AK49: 100% | AL49: =$F$49*AK49 -> R 0 | AN49: 100% | AO49: =$F$49*AN49 -> R 0
A50: 14 | B50: External Fire | F50: R 0 | G50: 100% | H50: =$F$50*G50 -> R 0 | J50: 100% | K50: =$F$50*J50 -> R 0 | M50: 100% | N50: =$F$50*M50 -> R 0 | P50: 0% | Q50: =$F$50*P50 -> R 0 | S50: 0% | T50: =$F$50*S50 -> R 0 | V50: 0% | W50: =$F$50*V50 -> R 0 | Y50: 0% | Z50: =$F$50*Y50 -> R 0 | AB50: 100% | AC50: =$F$50*AB50 -> R 0 | AE50: 100% | AF50: =$F$50*AE50 -> R 0 | AH50: 100% | AI50: =$F$50*AH50 -> R 0 | AK50: 100% | AL50: =$F$50*AK50 -> R 0 | AN50: 100% | AO50: =$F$50*AN50 -> R 0
A51: 15 | B51: Ancilliary structures | F51: R 0 | G51: 100% | H51: =$F$51*G51 -> R 0 | J51: 100% | K51: =$F$51*J51 -> R 0 | M51: 100% | N51: =$F$51*M51 -> R 0 | P51: 50% | Q51: =$F$51*P51 -> R 0 | S51: 0% | T51: =$F$51*S51 -> R 0 | V51: 0% | W51: =$F$51*V51 -> R 0 | Y51: 0% | Z51: =$F$51*Y51 -> R 0 | AB51: 0% | AC51: =$F$51*AB51 -> R 0 | AE51: 100% | AF51: =$F$51*AE51 -> R 0 | AH51: 100% | AI51: =$F$51*AH51 -> R 0 | AK51: 100% | AL51: =$F$51*AK51 -> R 0 | AN51: 100% | AO51: =$F$51*AN51 -> R 0
A52: 16 | B52: Signage | F52: R 0 | G52: 100% | H52: =$F$52*G52 -> R 0 | J52: 100% | K52: =$F$52*J52 -> R 0 | M52: 100% | N52: =$F$52*M52 -> R 0 | P52: 0% | Q52: =$F$52*P52 -> R 0 | S52: 0% | T52: =$F$52*S52 -> R 0 | V52: 0% | W52: =$F$52*V52 -> R 0 | Y52: 0% | Z52: =$F$52*Y52 -> R 0 | AB52: 0% | AC52: =$F$52*AB52 -> R 0 | AE52: 100% | AF52: =$F$52*AE52 -> R 0 | AH52: 100% | AI52: =$F$52*AH52 -> R 0 | AK52: 100% | AL52: =$F$52*AK52 -> R 0 | AN52: 100% | AO52: =$F$52*AN52 -> R 0
A53: 17 | B53: Provisional Sums - All allowances | F53: R 0 | G53: 100% | H53: =$F$53*G53 -> R 0 | J53: 100% | K53: =$F$53*J53 -> R 0 | M53: 100% | N53: =$F$53*M53 -> R 0 | P53: 0% | Q53: =$F$53*P53 -> R 0 | S53: 0% | T53: =$F$53*S53 -> R 0 | V53: 0% | W53: =$F$53*V53 -> R 0 | Y53: 0% | Z53: =$F$53*Y53 -> R 0 | AB53: 0% | AC53: =$F$53*AB53 -> R 0 | AE53: 100% | AF53: =$F$53*AE53 -> R 0 | AH53: 100% | AI53: =$F$53*AH53 -> R 0 | AK53: 100% | AL53: =$F$53*AK53 -> R 0 | AN53: 100% | AO53: =$F$53*AN53 -> R 0
A54: 18 | F54: R 0 | G54: 0% | H54: =$F$54*G54 -> R 0 | J54: 100% | K54: =$F$54*J54 -> R 0 | M54: 100% | N54: =$F$54*M54 -> R 0 | P54: 0% | Q54: =$F$54*P54 -> R 0 | S54: 0% | T54: =$F$54*S54 -> R 0 | V54: 0% | W54: =$F$54*V54 -> R 0 | Y54: 100% | Z54: =Y54*F54 -> R 0 | AB54: 0% | AC54: =$F$54*AB54 -> R 0 | AE54: 100% | AF54: =$F$54*AE54 -> R 0 | AH54: 100% | AI54: =$F$54*AH54 -> R 0 | AK54: 100% | AL54: =$F$54*AK54 -> R 0 | AN54: 100% | AO54: =$F$54*AN54 -> R 0
A55: 19 | F55: R 0 | G55: 0% | H55: =$F$55*G55 -> R 0 | J55: 100% | K55: =$F$55*J55 -> R 0 | M55: 100% | N55: =$F$55*M55 -> R 0 | P55: 0% | Q55: =$F$55*P55 -> R 0 | S55: 0% | T55: =$F$55*S55 -> R 0 | V55: 0% | W55: =$F$55*V55 -> R 0 | Y55: 0% | Z55: =$F$55*Y55 -> R 0 | AB55: 0% | AC55: =$F$55*AB55 -> R 0 | AE55: 100% | AF55: =$F$55*AE55 -> R 0 | AH55: 100% | AI55: =$F$55*AH55 -> R 0 | AK55: 100% | AL55: =$F$55*AK55 -> R 0 | AN55: 100% | AO55: =$F$55*AN55 -> R 0
A56: 20 | F56: R 0 | G56: 0% | H56: =$F$56*G56 -> R 0 | J56: 100% | K56: =$F$56*J56 -> R 0 | M56: 100% | N56: =$F$56*M56 -> R 0 | P56: 0% | Q56: =$F$56*P56 -> R 0 | S56: 100% | T56: =$F$56*S56 -> R 0 | V56: 100% | W56: =$F$56*V56 -> R 0 | Y56: 100% | Z56: =$F$56*Y56 -> R 0 | AB56: 0% | AC56: =$F$56*AB56 -> R 0 | AE56: 100% | AF56: =$F$56*AE56 -> R 0 | AH56: 100% | AI56: =$F$56*AH56 -> R 0 | AK56: 100% | AL56: =$F$56*AK56 -> R 0 | AN56: 100% | AO56: =$F$56*AN56 -> R 0
A57: 21 | F57: R 0 | G57: 0% | H57: =$F$57*G57 -> R 0 | J57: 100% | K57: =$F$57*J57 -> R 0 | M57: 100% | N57: =$F$57*M57 -> R 0 | P57: 0% | Q57: =$F$57*P57 -> R 0 | S57: 100% | T57: =$F$57*S57 -> R 0 | V57: 100% | W57: =$F$57*V57 -> R 0 | Y57: 100% | Z57: =$F$57*Y57 -> R 0 | AB57: 0% | AC57: =$F$57*AB57 -> R 0 | AE57: 100% | AF57: =$F$57*AE57 -> R 0 | AH57: 100% | AI57: =$F$57*AH57 -> R 0 | AK57: 100% | AL57: =$F$57*AK57 -> R 0 | AN57: 100% | AO57: =$F$57*AN57 -> R 0
A58: 22 | F58: R 0 | G58: 0% | H58: =$F$58*G58 -> R 0 | J58: 100% | K58: =$F$58*J58 -> R 0 | M58: 100% | N58: =$F$58*M58 -> R 0 | P58: 0% | Q58: =$F$58*P58 -> R 0 | S58: 100% | T58: =$F$58*S58 -> R 0 | V58: 100% | W58: =$F$58*V58 -> R 0 | Y58: 100% | Z58: =$F$58*Y58 -> R 0 | AB58: 0% | AC58: =$F$58*AB58 -> R 0 | AE58: 100% | AF58: =$F$58*AE58 -> R 0 | AH58: 100% | AI58: =$F$58*AH58 -> R 0 | AK58: 100% | AL58: =$F$58*AK58 -> R 0 | AN58: 100% | AO58: =$F$58*AN58 -> R 0
A59: 23 | F59: R 0 | G59: 0% | H59: =$F$59*G59 -> R 0 | J59: 100% | K59: =$F$59*J59 -> R 0 | M59: 100% | N59: =$F$59*M59 -> R 0 | P59: 100% | Q59: =$F$59*P59 -> R 0 | S59: 100% | T59: =$F$59*S59 -> R 0 | V59: 100% | W59: =$F$59*V59 -> R 0 | Y59: 100% | Z59: =$F$59*Y59 -> R 0 | AB59: 0% | AC59: =$F$59*AB59 -> R 0 | AE59: 100% | AF59: =$F$59*AE59 -> R 0 | AH59: 100% | AI59: =$F$59*AH59 -> R 0 | AK59: 100% | AL59: =$F$59*AK59 -> R 0 | AN59: 100% | AO59: =$F$59*AN59 -> R 0
A60: 24 | F60: R 0 | G60: 0% | H60: =$F$60*G60 -> R 0 | J60: 100% | K60: =$F$60*J60 -> R 0 | M60: 100% | N60: =$F$60*M60 -> R 0 | P60: 100% | Q60: =$F$60*P60 -> R 0 | S60: 100% | T60: =$F$60*S60 -> R 0 | V60: 100% | W60: =$F$60*V60 -> R 0 | Y60: 100% | Z60: =$F$60*Y60 -> R 0 | AB60: 0% | AC60: =$F$60*AB60 -> R 0 | AE60: 100% | AF60: =$F$60*AE60 -> R 0 | AH60: 100% | AI60: =$F$60*AH60 -> R 0 | AK60: 100% | AL60: =$F$60*AK60 -> R 0 | AN60: 100% | AO60: =$F$60*AN60 -> R 0
A61: 25 | F61: R 0 | G61: 0% | H61: =$F$61*G61 -> R 0 | J61: 100% | K61: =$F$61*J61 -> R 0 | M61: 100% | N61: =$F$61*M61 -> R 0 | P61: 100% | Q61: =$F$61*P61 -> R 0 | S61: 100% | T61: =$F$61*S61 -> R 0 | V61: 100% | W61: =$F$61*V61 -> R 0 | Y61: 100% | Z61: =$F$61*Y61 -> R 0 | AB61: 0% | AC61: =$F$61*AB61 -> R 0 | AE61: 100% | AF61: =$F$61*AE61 -> R 0 | AH61: 100% | AI61: =$F$61*AH61 -> R 0 | AK61: 100% | AL61: =$F$61*AK61 -> R 0 | AN61: 100% | AO61: =$F$61*AN61 -> R 0
A62: 18 | B62: Mark-up & Attendance | F62: R 0 | G62: 100% | H62: =$F$62*G62 -> R 0 | J62: 100% | K62: =$F$62*J62 -> R 0 | M62: 100% | N62: =$F$62*M62 -> R 0 | P62: 0% | Q62: =8%*SUM(Q43:Q61) -> R 0 | S62: 0% | T62: =8%*SUM(T43:T61) -> R 0 | V62: 0% | W62: =8%*SUM(W42:W61) -> R 0 | Y62: 0% | Z62: =8%*SUM(Z42:Z61) -> R 0 | AB62: 0% | AC62: =$F$62*AB62 -> R 0 | AE62: 0% | AF62: =$F$62*AE62 -> R 0 | AH62: 0% | AI62: =$F$62*AH62 -> R 0 | AK62: 100% | AL62: =$F$62*AK62 -> R 0 | AN62: 100% | AO62: =$F$62*AN62 -> R 0
G63: 100% | AQ63: DO NOT DELETE
A64: =A62+1 -> 19 | B64: Main Preliminaries | F64: R 0 | G64: 100% | H64: =$F$64*G64 -> R 0 | J64: 100% | K64: =$F$64*J64 -> R 0 | M64: 100% | N64: =$F$64*M64 -> R 0 | P64: 10% | Q64: =$F$64*P64 -> R 0 | S64: 5% | T64: =$F$64*S64 -> R 0 | V64: 5% | W64: =$F$64*V64 -> R 0 | Y64: 5% | Z64: =$F$64*Y64 -> R 0 | AB64: 0% | AC64: =$F$64*AB64 -> R 0 | AE64: 0% | AF64: =$F$64*AE64 -> R 0 | AH64: 0% | AI64: =$F$64*AH64 -> R 0 | AK64: =AS71 ->  | AL64: =$F$64*AK64 ->  | AN64: 0% | AO64: =$F$64*AN64 -> R 0 | AQ64: =P19 -> Structural Engineer | AS64: =(AT64/$AT$72) ->  | AT64: =SUM(Q24:Q62) -> 
AQ65: =S19 -> Civil Engineer | AS65: =(AT65/$AT$72) ->  | AT65: =SUM(T24:T62) -> 
A66: 7.0 | B66: Sub Total (Excl. Contingency, Escalation, Fees & VAT) | F66: =+F32+F34 -> R 1,888,189 | H66: =SUM(H24:H65) ->  | K66: =SUM(K26:K65) ->  | N66: =SUM(N26:N65) ->  | Q66: =SUM(Q26:Q65) ->  | T66: =SUM(T25:T65) ->  | W66: =SUM(W25:W65) ->  | Z66: =SUM(Z26:Z65) ->  | AC66: =SUM(AC25:AC65) ->  | AF66: =SUM(AF25:AF65) ->  | AI66: =SUM(AI26:AI65) ->  | AL66: =SUM(AL25:AL65) ->  | AO66: =SUM(AO25:AO65) ->  | AQ66: =V19 -> Mechanical Engineer | AT66: =SUM(W24:W62) -> 
AQ67: =Y19 -> Electrical Engineer | AT67: =SUM((Z24:Z62)) -> 
A68: =A66+1 -> 8 | B68: Pre-Contract Escalation | D68: 0 | E68: 0.00% | F68: R 0 | G68: =+E68 -> 0.00% | H68: =H66*G68*$D$68 ->  | J68: =+G68 -> 0.00% | K68: =K66*J68*$D$68 ->  | M68: =+$J$68 -> 0.00% | N68: =N66*M68*$D$68 ->  | P68: =+$M$68 -> 0.00% | Q68: =Q66*P68*$D$68 ->  | S68: =+$P$68 -> 0.00% | T68: =T66*S68*$D$68 ->  | V68: =+$S$68 -> 0.00% | W68: =W66*V68*$D$68 ->  | Y68: =+$V$68 -> 0.00% | Z68: =Z66*Y68*$D$68 ->  | AB68: =+$Y$68 -> 0.00% | AC68: =AC66*AB68*$D$68 ->  | AE68: =+$AB$68 -> 0.00% | AF68: =AF66*AE68*$D$68 ->  | AH68: =+$AE$68 -> 0.00% | AI68: =AI66*AH68*$D$68 ->  | AK68: =+$AH$68 -> 0.00% | AL68: =AL66*AK68*$D$68 ->  | AN68: =+$AK$68 -> 0.00% | AO68: =AO66*AN68*$D$68 ->  | AQ68: =AB19 -> Rational Fire Engineer | AT68: =SUM((AC24:AC62)) -> 
A69: =A68+1 -> 9 | B69: Contract Escalation | D69: 0 | E69: 0.00% | F69: R 0 | G69: =+E69 -> 0.00% | H69: =H66*G69*$D$69*0.4 ->  | J69: =+G69 -> 0.00% | K69: =K66*J69*$D$69*0.4 ->  | M69: =+$J$69 -> 0.00% | N69: =N66*M69*$D$69*0.4 ->  | P69: =+$M$69 -> 0.00% | Q69: =Q66*P69*$D$69*0.4 ->  | S69: =+P69 -> 0.00% | T69: =T66*S69*$D$69*0.4 ->  | V69: =+$S$69 -> 0.00% | W69: =W66*V69*$D$69*0.4 ->  | Y69: =+$V$69 -> 0.00% | Z69: =Z66*Y69*$D$69*0.4 ->  | AB69: =+$Y$69 -> 0.00% | AC69: =AC66*AB69*$D$69*0.4 ->  | AE69: =+$AB$69 -> 0.00% | AF69: =AF66*AE69*$D$69*0.4 ->  | AH69: =+$AE$69 -> 0.00% | AI69: =AI66*AH69*$D$69*0.4 ->  | AK69: =+$AH$69 -> 0.00% | AL69: =AL66*AK69*$D$69*0.4 ->  | AN69: =+$AK$69 -> 0.00% | AO69: =AO66*AN69*$D$69*0.4 ->  | AQ69: =AE19 -> Fire Engineer | AT69: =SUM((AF24:AF62)) -> 
AQ70: =AH19 -> Wet Services | AT70: =SUM(AI24:AI62) -> 
A71: =A69+1 -> 10 | B71: Value for fee purpose | F71: =SUM(F66:F70) -> R 1,888,189 | H71: =SUM(H66:H70) ->  | K71: =SUM(K66:K70) ->  | N71: =SUM(N66:N70) ->  | Q71: =SUM(Q66:Q70) ->  | T71: =SUM(T66:T70) ->  | W71: =SUM(W66:W70) ->  | Z71: =SUM(Z66:Z70) ->  | AC71: =SUM(AC66:AC70) ->  | AF71: =SUM(AF66:AF70) ->  | AI71: =SUM(AI66:AI70) ->  | AL71: =SUM(AL66:AL70) ->  | AO71: =SUM(AO66:AO70) ->  | AQ71: =AK19 -> Landscape Architect | AT71: =SUM((AL24:AL62)) -> 
AQ72: TOTAL | AS72: =SUM(AS64:AS71) ->  | AT72: =SUM(AT64:AU71) -> 
B73: Discount | C73: % | H73: 45.00% | K73: =+H73 -> 45.00% | N73: =+K73 -> 45.00% | Q73: =+N73 -> 45.00% | T73: =+Q73 -> 45.00% | W73: =+T73 -> 45.00% | Z73: =+W73 -> 45.00% | AC73: 22.90% | AF73: =+Z73 -> 45.00% | AI73: =+AF73 -> 45.00% | AL73: 30% | AO73: =+AI73 -> 45.0%
B75: Disbursements | D75: OR | H75: 0 | K75: 0 | N75: 0 | Q75: 0 | T75: 0 | W75: 0 | Z75: 0 | AC75: 0 | AF75: 0 | AI75: 0 | AL75: 0 | AO75: 0 | AQ75: DO NOT DELETE
AQ77: FALSE | AR77: =AQ77*1 -> 0
B78: STANDARD BASIS OF CALCULATIONS | AQ78: FALSE | AR78: =AQ78*1 -> 0
A79: - | B79: Includes Escalation
A80: - | B80: Excludes Contingencies
A81: - | B81: Pro-rata of Main Contractors Preliminaries on Value of Engineering works
A82: - | B82: QS: Includes Profit and Attendance on Specialist Works | H82: =+'STAGE BREAKDOWN'!D23/BREAKDOWN!F71 -> 
F87: R 35,462,858
F89: =+F71-F87 -> -33,574,669
I92: should be zero

Sheet PM (hidden)
B2: =UPPER(BREAKDOWN!G19) -> PROJECT MANAGER | J2: =IF(AND($P$36=0,$P$55=0),"","ERROR ON SHEET") ->  | M2: Act No. 48 of 2000
M3: SACPCMP Guideline Tariff of Fees - Effective January 2012
B4: Variables
A6: • | B6: Value for fee purposes | D6: =+BREAKDOWN!H71 -> 
A8: • | B8: Discount % | D8: =+BREAKDOWN!H73 -> 45%
A10: • | B10: Disbursement % | D10: =IF(BREAKDOWN!$AR$77=1,(BREAKDOWN!H75/100),0) -> 0% | F10: 1 | I10: =IF(D10>0,F10,0) -> 0
C11: OR
A12: • | B12: Disbursement value | D12: =IF(BREAKDOWN!$AR$78=1,BREAKDOWN!H75,0) -> 0 | F12: 1 | I12: =IF(D12>0,F12,0) -> 0
B16: Based on latest Tariff of Fees | K16: Fee Calculations
B17: Value for fee purposes | D17: Primary | E17: Secondary | F17: Grouping | K17: Primary | L17: Secondary | M17: Total
B19: 0 | C19: 10,000,001 | D19: 10,000 | E19: 6.35% | F19: 1 | G19: =IF($D$6>B19,F19,0) ->  | H19: =IF($D$6<C19,F19,0) ->  | I19: =H19*G19 ->  | K19: =I19*D19 ->  | L19: =ROUND(($D$6-B19)*E19*I19,0) ->  | M19: =L19+K19 -> 
B20: =C19+0.01 -> 10,000,001 | C20: 20,000,001 | D20: 645,000 | E20: 5.72% | F20: 1 | G20: =IF($D$6>B20,F20,0) ->  | L20: =ROUND(($D$6-B20)*E20*I20,0) -> 
B21: 20,000,001 | C21: 40,000,001 | D21: 1,217,000 | E21: 5.14% | F21: 1 | L21: =ROUND(($D$6-B21)*E21*I21,0) -> 
B22: 40,000,001 | C22: 80,000,001 | D22: 2,245,000 | E22: 4.63% | F22: 1
B23: 80,000,001 | C23: 160,000,001 | D23: 4,097,000 | E23: 4.07% | F23: 1
B24: 160,000,001 | C24: 320,000,001 | D24: 7,353,000 | E24: 3.58% | F24: 1
B25: 320,000,001 | C25: 640,000,001 | D25: 13,081,000 | E25: 3.08% | F25: 1
B26: 640,000,001 | C26: 1,280,000,001 | D26: 22,937,000 | E26: 2.65% | F26: 1 | G26: =IF($D$6>B26,F26,0) ->  | H26: =IF($D$6<C26,F26,0) ->  | I26: =H26*G26 ->  | K26: =I26*D26 ->  | M26: =L26+K26 -> 
B27: 1,280,000,001 | C27: 2,560,000,001 | D27: 39,897,000 | E27: 2.28% | F27: 1 | G27: =IF($D$6>B27,F27,0) ->  | H27: =IF($D$6<C27,F27,0) ->  | I27: =H27*G27 ->  | K27: =I27*D27 ->  | M27: =L27+K27 -> 
B28: 2,560,000,001 | C28: and above | D28: 69,081,000 | E28: 1.96% | F28: 1 | G28: =IF($D$6>B28,F28,0) ->  | H28: 1 | I28: =H28*G28 ->  | K28: =D28*I28 ->  | M28: =L28+K28 -> 
J30: R | K30: =SUM(K18:K29) ->  | L30: =SUM(L18:L29) ->  | M30: =L30+K30 -> 
B32: Fee Calculation
B34: Primary Fee | D34: =K30 -> 
B35: % Fee on full value | D35: =L30 ->  | P35: ALL CHECKS TO BE = 0
B36: Sub-total | D36: =SUM(D34:D35) ->  | P36: =D36-M30 ->  | Q36: CHECK
B38: Discount | D38: =ROUND(-$D$36*($D$8),0) -> 
B39: Sub-total | D39: =SUM(D36:D38) -> 
B41: Disbursements | D41: =+'SUMMARY (2)'!H22 ->  | Q41: 3,091,487
B43: Total PM Fee | D43: =ROUND(SUM(D39:D41),0) ->  | E43: Excl Vat
B47: Fee Stages
B49: Stage 1 | C49: Inception | E49: =ROUND($D$43*K49%,2) ->  | K49: 10 | L49: %
B50: Stage 2 | C50: Concept and viability | K50: 10 | L50: %
B51: Stage 3 | C51: Design development | K51: 25 | L51: %
B52: Stage 4 | C52: Documentation and procurement | K52: 10 | L52: %
B53: Stage 5 | C53: Construction | K53: 40 | L53: %
B54: Stage 6 | C54: Project close out | K54: 5 | L54: %
E55: =SUM(E49:E54) ->  | K55: =SUM(K49:K54) -> 100 | L55: % | P55: =D43-E55 ->  | Q55: CHECK
B58: Notes - See latest fee scales
A59: * | B59: Standard services are identified in the latest fee publication, refer 3
A60: * | B60: Additional services which attract additional fee shall be included if agreed to by the client and the Project construction manager
A61: * | B61: Commission termination, refer 5
A62: * | B62: Fees for additional/supplementary services, refer 9
A63: * | B63: Time base fees, refer 10
A64: * | B64: Expenses and costs, refer 11

Sheet ARCH (hidden)
K1: `
B2: =UPPER(BREAKDOWN!J19) -> ARCHITECT | E2: =IF(AND($P$39=0,$P$68=0),"","ERROR ON SHEET") ->  | M2: Board Notice 73 of 2015
M3: SACAP Professional Fees Guideline - Effective March 2015
B4: Variables
A6: • | B6: Value for fee purposes | D6: =BREAKDOWN!K71 ->  | E6: Including alteration value
A8: • | B8: Alteration value | D8: =BREAKDOWN!K38 -> 0
A10: • | B10: Discount % | D10: =+BREAKDOWN!K73 -> 45%
A12: • | B12: Disbursement % | D12: =IF(BREAKDOWN!$AR$77=1,(BREAKDOWN!K75/100),0) -> 0% | F12: 1 | I12: =IF(D12>0,F12,0) -> 0
C13: OR
A14: • | B14: Disbursement value | D14: =IF(BREAKDOWN!$AR$78=1,BREAKDOWN!K75,0) -> 0 | F14: 1 | G14: =SUM(I12,I14) -> 0 | I14: =IF(D14>0,F14,0) -> 0
B17: Based on latest Tarrif of Fees | K17: Fee Calculations
B18: Value for fee purposes | D18: Base | E18: % Fee | F18: Grouping | K18: Base | L18: % Fee | M18: Total
B20: 1 | C20: 200,000 | D20: 18,000 | E20: 14.00% | F20: 1 | G20: =IF($D$6>B20,F20,0) ->  | H20: =IF($D$6<C20,F20,0) ->  | I20: =H20*G20 ->  | K20: =I20*D20 ->  | L20: =ROUND(($D$6-B20)*E20*I20,0) ->  | M20: =L20+K20 -> 
B21: =C20+B20 -> 200,001 | C21: 650,000 | D21: 46,000 | E21: 13.50% | F21: 1 | G21: =IF($D$6>B21,F21,0) ->  | K21: =I21*D21 ->  | L21: =ROUND(($D$6-B21)*E21*I21,0) ->  | M21: =L21+K21 -> 
B22: =C21+$B$20 -> 650,001 | C22: 2,000,000 | D22: 106,750 | E22: 12.00% | F22: 1 | G22: =IF($D$6>B22,F22,0) -> 
B23: 2,000,001 | C23: 4,000,000 | D23: 268,750 | E23: 10.50% | F23: 1
B24: 4,000,001 | C24: 6,500,000 | D24: 478,750 | E24: 10.00% | F24: 1
B25: 6,500,001 | C25: 13,000,000 | D25: 728,749 | E25: 9.50% | F25: 1
B26: 13,000,001 | C26: 40,000,000 | D26: 1,346,249 | E26: 9.00% | F26: 1
B27: 40,000,001 | C27: 130,000,000 | D27: 3,776,249 | E27: 8.50% | F27: 1
B28: 130,000,001 | C28: 260,000,000 | D28: 11,426,249 | E28: 8.25% | F28: 1
B29: 260,000,001 | C29: 520,000,000 | D29: 22,151,249 | E29: 8.00% | F29: 1
B30: 520,000,001 | C30: 1,040,000,000 | D30: 42,951,249 | E30: 7.75% | F30: 1
B31: 1,040,000,001 | C31: 0 | D31: 83,251,249 | E31: 7.50% | F31: 1 | G31: =IF($D$6>B31,F31,0) ->  | H31: 1
J33: R | K33: =SUM(K19:K32) ->  | L33: =SUM(L19:L32) ->  | M33: =L33+K33 -> 
B35: Fee Calculation
B37: Basic Fee | D37: =K33 -> 
B38: % Fee on full value | D38: =L33 ->  | P38: ALL CHECKS TO BE = 0
B39: Sub-total | D39: =SUM(D37:D38) ->  | P39: =D39-M33 ->  | Q39: CHECK
B41: Alteration fee | D41: =ROUND(+IF(BREAKDOWN!AU27=1,(($D$39/$D$6*$D$8)*$K$41),($D$39/$D$6*$D$8*$K$41)),0) ->  | E41: Ref 1.3.7 | K41: 30% | L41: Factor
B42: Sub-total | D42: =SUM(D39:D41) -> 
B44: Restoration fee | D44: =IF(BREAKDOWN!AU28=1,((D39/1.15))*0.4,0) -> 0 | E44: Ref 1.3.8
B45: Sub-total | D45: =SUM(D42:D44) -> 
B47: Less: Principal Agency Fee | D47: =ROUND(-($D$45*(stage5to6)/100*0.1)*BREAKDOWN!AU25,0) ->  | E47: Ref 1.3.3
B48: Less: Principal Consultant Fee | D48: 0 | E48: Ref 1.3.3
B49: Sub-total | D49: =ROUND(SUM(D45:D48),-2) -> 
B51: Discount | D51: =ROUND(-$D$49*$D$10,0) -> 
B52: Sub-total | D52: =SUM(D49:D51) ->  | Q52: =D51/D49 -> 
B54: Disbursements | D54: =+'SUMMARY (2)'!J22 -> 
B56: Total Architectural Fee | D56: =SUM(D52:D54) ->  | E56: Excl Vat
B59: Fee Stages
B61: Stage 1 | C61: Inception | E61: =ROUND(K61*$D$56%,2) ->  | K61: 5 | L61: %
B62: Stage 2 | C62: Concept and viability | K62: 15 | L62: %
B63: Stage 3 | C63: Design Development | K63: 20 | L63: %
B64: Stage 4.1 | C64: Documentation and procurement | K64: 20 | L64: %
B65: Stage 4.2 | C65: Documentation and procurement | K65: 10 | L65: %
B66: Stage 5 | C66: Construction | K66: 27 | L66: %
B67: Stage 6 | C67: Close Out | K67: 3 | L67: %
E68: =SUM(E61:E67) ->  | K68: =SUM(K61:K67) -> 100 | L68: % | P68: =D56-E68 ->  | Q68: CHECK
B71: Notes -See latest fee scales
A72: * | B72: For time based fees refer to Table 2 of the Professional Fees Guideline of the latest fee publication
A73: * | B73: Standard services are identified in the latest fee publication, refer 1.1
A74: * | B74: Additional services which attract additional fee shall be included if agreed to by the client and the architectural professional
A75: * | B75: For a partial service, assuming the fee is a project cost based fee, the percentage of the fee for each work stage to be performed is agreed between client and architectural professional (Ref 1.3.2)
A76: * | B76: Fees for buildings repeated under separate building contracts refer 1.3.10
A77: * | B77: Fees for an appointment where the architectural professional takes over incomplete work of another practitioner, refer 1.3.11
A78: * | B78: Fees for deployment of employees, refer 1.3.13
A79: * | B79: Fees for extended initial contractual contract period, refer 1.3.14
A80: * | B80: Adjustment of guideline fees and disbursements, refer 1.3.15
A81: * | B81: Travelling time, refer 1.3.16
A82: * | B82: Guideline for fees on termination by client, refer 1.3.17
A83: * | B83: Re-imbursement of expenses, refer 1.3.20

Sheet QS (hidden)
B2: =UPPER(BREAKDOWN!M19) -> QUANTITY SURVEYOR | J2: =IF(AND($P$99=0,$P$121=0),"","ERROR ON SHEET") ->  | M2: Act 49 of 2000
M3: SACQSP 2015 Tariff of Professional Fees Schedule - Effective August 2015
B4: Variables
A6: • | B6: Value for fee purposes | D6: =+BREAKDOWN!N71 ->  | E6: Including alteration value
A8: • | B8: Alteration value | D8: =BREAKDOWN!N38 -> 0
A10: • | B10: Redecoration works value | D10: 0 | E10: Input value
A12: • | B12: Discount % | D12: =+BREAKDOWN!N73 -> 45.0%
A14: • | B14: Disbursement % | D14: =IF(BREAKDOWN!$AR$77=1,(BREAKDOWN!N75/100),0) -> 0% | F14: 1 | I14: =IF(D14>0,F14,0) -> 0
C15: OR
A16: • | B16: Disbursement value | D16: =IF(BREAKDOWN!$AR$78=1,BREAKDOWN!N75,0) -> 0 | F16: 1 | I16: =IF(D16>0,F16,0) -> 0
B19: Based on latest Tarrif of Fees | K19: Fee Calculations
B20: Value for fee purposes | D20: Primary | E20: Marginal | F20: Grouping | K20: Primary | L20: Marginal | M20: Total
B22: 0 | C22: 1,000,000 | D22: 19,000 | E22: 8.00% | F22: 1 | G22: =IF($D$6>B22,F22,0) ->  | H22: =IF($D$6<C22,F22,0) ->  | I22: =H22*G22 ->  | K22: =I22*D22 ->  | L22: =ROUND(($D$6-B22)*E22*I22,0) ->  | M22: =L22+K22 -> 
B23: =C22 -> 1,000,000 | C23: =C22*2 -> 2,000,000 | D23: 99,000 | E23: 8.00% | F23: 1 | K23: =I23*D23 ->  | L23: =ROUND(($D$6-B23)*E23*I23,0) ->  | M23: =L23+K23 -> 
B24: 2,000,000 | C24: 4,000,000 | D24: 179,000 | E24: 7.95% | F24: 1 | K24: =I24*D24 ->  | M24: =L24+K24 -> 
B25: 4,000,000 | C25: 8,000,000 | D25: 338,000 | E25: 7.15% | F25: 1 | K25: =I25*D25 ->  | M25: =L25+K25 -> 
B26: 8,000,000 | C26: 16,000,000 | D26: 624,000 | E26: 6.70% | F26: 1 | K26: =I26*D26 ->  | L26: =ROUND(($D$6-B26)*E26*I26,0) ->  | M26: =L26+K26 -> 
B27: 16,000,000 | C27: 32,000,000 | D27: 1,160,000 | E27: 5.90% | F27: 1 | K27: =I27*D27 ->  | M27: =L27+K27 -> 
B28: 32,000,000 | C28: 64,000,000 | D28: 2,104,000 | E28: 5.27% | F28: 1
B29: 64,000,000 | C29: 128,000,000 | D29: 3,790,400 | E29: 5.15% | F29: 1 | K29: =I29*D29 ->  | L29: =ROUND(($D$6-B29)*E29*I29,0) -> 
B30: 128,000,000 | C30: 256,000,000 | D30: 7,086,400 | E30: 4.10% | F30: 1 | K30: =I30*D30 -> 
B31: 256,000,000 | C31: 500,000,000 | D31: 12,334,400 | E31: 3.96% | F31: 1
B32: 500,000,000 | C32: 1,500,000,000 | D32: 21,996,800 | E32: 3.50% | F32: 1
B33: 1,500,000,000 | C33: 3,000,000,000 | D33: 56,969,800 | E33: 3.12% | F33: 1 | G33: =IF($D$6>B33,F33,0) ->  | H33: =IF($D$6<C33,F33,0) ->  | I33: =H33*G33 -> 
B34: 3,000,000,000 | D34: 103,769,800 | E34: 2.44% | F34: 1 | H34: 1
J36: R | K36: =SUM(K21:K35) ->  | L36: =SUM(L21:L35) ->  | M36: =L36+K36 -> 
B38: Fee Calculation
B40: Appropriate percentage for building work
B42: Category | C42: Appropriate percentage
C43: * Contracts with boq | D43: * Contracts with simplified boq | E43: Contracts without boq | K43: Builder's quantities | L43: Payment valuations | M43: Cost-plus contracts
B44: 1 | C44: 2 | D44: 3 | E44: 4 | K44: 5 | L44: 6 | M44: 7
B45: Alterations | C45: 125 | D45: 100 | E45: 75 | K45: 20 | L45: 15 | M45: 70
B46: Building works | C46: 100 | D46: 75 | E46: 75 | K46: 25 | L46: 15 | M46: 70
B47: Redecoration | C47: 160 | D47: 150 | E47: 75 | K47: 50 | L47: 15 | M47: 70
B48: Replication:
B49: Prototypes | C49: Apply applicable appropriate percentage | M49: n/a
B50: Replication of prototype | C50: 60% of applicable appropriate percentage | M50: n/a
B51: Multiple procurement:
B52: Principal contractor appointed | C52: Increase fee by | D52: 10% | M52: n/a
B53: No principal contractor appointed | C53: Increase fee by | D53: 20% | L53: 20% | M53: n/a
B54: * Includes contracts with bills of provisional quantities or schedule of rates
B56: Appropriate percentage for engineering works
B58: Category | C58: Appropriate percentage
C59: * Contracts with engineering boq | D59: Contracts without engineering boq | E59: Payment valuations | K59: Cost-plus contracts
B60: 1 | C60: 2 | D60: 3 | E60: 4 | K60: 5
B61: Civil eng: Category 1 | C61: 55 | D61: 45 | E61: 15 | K61: 55
B62: Civil eng: Category 11 | C62: 70 | D62: 45 | E62: 15 | K62: 55
B63: Elect eng | C63: 65 | D63: 45 | E63: 15 | K63: 55
B64: Mech eng | C64: 65 | D64: 45 | E64: 15 | K64: 55
B65: Process eng:
B66: Utilising detail isometric drawings | C66: 55 | D66: 45 | E66: 15 | K66: 55
B67: Utilising general arrangement drawings | C67: 100 | D67: 45 | E67: 15 | K67: 55
B68: Replication:
B69: Prototypes | C69: Applicable appropriate percentage | K69: n/a
B70: Replication of prototype | C70: 60% of applicable appropriate percentage | K70: n/a
B71: * Includes contracts with bills of provisional quantities or schedule of rates
B73: Appropriate percentage for management services
B75: Category | C75: Appropriate percentage
C76: Building works | D76: Engineering works
B77: 1 | C77: 2 | D77: 3
B78: Principal agency | C78: 45 | D78: 42.5
B79: Principal consultancy | C79: 30 | D79: 27.5
B80: Project monitoring | C80: 25 | D80: 22.5
B81: Quality inspection | C81: 15 | D81: 15
B83: Appropriate percentage for supplementary services
B85: Category | D85: Appropriate percentage
B86: 1 | D86: 2
B87: Cost norms | D87: 7
B88: Location bills of quantities | D88: Negotiated
B89: Schedule of materials for building works for which the QS has not prepared BoQ | D89: 120 (calculated on the total value of such materials)
B90: Targeted procurement | D90: 7
B91: Valuations for assessment of taxation, fire insurance, expropriation, rental return and similar purposes based upon: | D91: A time charge where value is less than R10 000 000
B92: Rate/area method with suitable drawings | D92: 1
B93: Rate/area method with measurements on site | D93: 1.75
B94: Elemental method with suitable drawings | D94: 2
B95: Elemental method with measurements on site | D95: 3.5
B97: Primary Fee | D97: =K36 -> 
B98: Marginal Fee | D98: =L36 ->  | P98: ALL CHECKS TO BE = 0
B99: Sub-total | D99: =SUM(D97:D98) ->  | P99: =M36-D99 ->  | Q99: CHECK
B101: Alteration fee | D101: =ROUND((D99/D6*D8)*K101,0) ->  | K101: 25% | L101: Factor
B102: Sub-total | D102: =SUM(D99:D101) -> 
B104: Re-decoration fee | D104: =ROUND(IF(BREAKDOWN!AU29=1,((D99/D6)*D10),(D99/D6*D10)*K104),0) ->  | K104: 60% | L104: Factor
B105: Sub-total | D105: =SUM(D102:D104) -> 
B107: Multi procurement fee | D107: 0
B108: Sub-total | D108: =SUM(D105:D107) ->  | P108: DO NOT DELETE
B110: Management Service | E110: Input value - Refer Fee Scale for calculation | P110: =IF(BREAKDOWN!#REF!=1,QS!D99*QS!C78/100,0)*0 -> 
B111: Sub-total | D111: =SUM(D108:D110) -> 
B113: Supplementary Service | E113: Input value - Refer Fee Scale for calculation | P113: =IF(BREAKDOWN!#REF!=1,QS!D99*QS!D87/100,0)*0 -> 
B114: Sub-total | D114: =SUM(D111:D113) -> 
B116: Discount | D116: =ROUND(-D114*D12,0) -> 
B117: Sub-total | D117: =SUM(D114:D116) ->  | T117: =D116/D114 ->  | U117: check
B119: Disbursements | D119: =+'SUMMARY (2)'!L22 -> 
B121: Total Quantity Surveyors Fee | D121: =SUM(D117:D119) ->  | E121: Excl Vat | P121: =D121-E157 ->  | Q121: CHECK
B124: Fee Stages
P125: Provisional BoQ
B126: Category | C126: Percentage fee
C127: Stage 1 | D127: Stage 2 | E127: Stage 3 | K127: Stage 4 | L127: Stage 5 | M127: Stage 6
C128: Inception | D128: Concept and viability | E128: Design development | K128: Documentation and Procurement | L128: Construction | M128: Close-out
B129: 1 | C129: 2 | D129: 3 | E129: 4 | K129: 5 | L129: 6 | M129: 7
B130: BoQ & eng Boq:
B131: Provisional BoQ | C131: 2.5 | D131: 5 | E131: 7.5 | K131: 17.5 | L131: 62.5 | M131: 5
B132: BoQ | C132: 2.5 | D132: 5 | E132: 7.5 | K132: 35 | L132: 45 | M132: 5
B133: Schedule of rates | C133: 2.5 | D133: 5 | E133: 7.5 | K133: 12.5 | L133: 67.5 | M133: 5
B134: Builders's quants | C134: n/a | D134: n/a | E134: n/a | K134: 100 | L134: n/a | M134: n/a
B135: Contracts without BoQ | C135: 2.5 | D135: 7.5 | E135: 10 | K135: 20 | L135: 52.5 | M135: 7.5
B136: Cost norms | C136: 15 | D136: 15 | E136: 15 | K136: 20 | L136: 25 | M136: 10
B137: Cost-plus contract | C137: 3 | D137: 7.5 | E137: 10 | K137: 0 | L137: 57.5 | M137: 7.5
B138: Payment valuation | C138: n/a | D138: n/a | E138: n/a | K138: n/a | L138: 92.5 | M138: 7.5
B139: Principal agency | C139: n/a | D139: n/a | E139: 7.5 | K139: 7.5 | L139: 70 | M139: 15
B140: Principal consultancy | C140: 25 | D140: 25 | E140: 25 | K140: 25 | L140: n/a | M140: n/a
B141: Project monitoring | C141: 2.5 | D141: 5 | E141: 10 | K141: 17.5 | L141: 50 | M141: 15
B142: Quality inspection | C142: n/a | D142: n/a | E142: n/a | K142: n/a | L142: 85 | M142: 15
B143: Replication of prototype | C143: 2.5 | D143: 5 | E143: 5 | K143: 17.5 | L143: 62.5 | M143: 7.5
B144: Schedule of materials | C144: n/a | D144: n/a | E144: n/a | K144: n/a | L144: 100 | M144: n/a
B145: Simplified BoQ contracts:
B146: Provisional BoQ | C146: 2.5 | D146: 7.5 | E146: 10 | K146: 17.5 | L146: 55 | M146: 7.5
B147: BoQ | C147: 2.5 | D147: 7.5 | E147: 10 | K147: 35 | L147: 37.5 | M147: 7.5
B148: Schedule of rates | C148: 2.5 | D148: 7.5 | E148: 10 | K148: 12.5 | L148: 60 | M148: 7.5
B149: Targeted procurement | C149: n/a | D149: n/a | E149: n/a | K149: 20 | L149: 60 | M149: 20
B151: Stage 1 | C151: Inception | E151: =ROUND($D$121*K151%,2) ->  | K151: 2.5 | L151: % | P151: 2.5 | Q151: %
B152: Stage 2 | C152: Concept & Viability | K152: 12.5 | L152: % | P152: 5 | Q152: %
B153: Stage 3 | C153: Design Development | K153: 10.0 | L153: % | P153: 7.5 | Q153: %
B154: Stage 4 | C154: Documentation & Procurement | K154: 15.0 | L154: % | P154: 17.5 | Q154: %
B155: Stage 5 | C155: Construction | K155: 55.0 | L155: % | P155: 62.50 | Q155: %
B156: Stage 6 | C156: Close Out | K156: 5 | L156: % | P156: 5 | Q156: %
E157: =SUM(E151:E156) ->  | K157: =SUM(K151:K156) -> 100 | L157: %
B160: Notes - See latest fee scales
A161: * | B161: Services at risk, refer 3
A162: * | B162: Excessive variations, refer 4
A163: * | B163: Commissions terminated, refer 5
A164: * | B164: Extraordinary contract provisions, refer 6
A165: * | B165: Time charge, refer 7
A166: * | B166: Disbursements, refer 8
A167: * | B167: Payment, refer 9

Sheet STRUC (hidden)
B2: =UPPER(BREAKDOWN!P19) -> STRUCTURAL ENGINEER | J2: =IF(AND($P$12=0,$P$124=0),"","ERROR ON SHEET") ->  | M2: Act 46 of 2000
M3: ECSA Guideline for Services and Process for estimating fees
B4: Variables
A6: • | B6: Value for fee purposes | D6: =+BREAKDOWN!Q71 ->  | E6: Excluding Preliminaries and Escalation
A8: • | B8: Main Contractor Preliminaries | D8: =BREAKDOWN!Q64 -> 0 | E8: Pro-rata of Main Contractors Preliminaries on Value of Engineering works
A10: • | B10: Escalation | D10: 0 | P10: ALL CHECKS TO BE = 0
A12: • | B12: Total value for fee purposes | D12: =D6+D8+D10 ->  | P12: =(D6+D8+D10)-D12 ->  | Q12: CHECK
A14: • | B14: Discount % | D14: =+BREAKDOWN!Q73 -> 45.00%
A16: • | B16: Disbursement % | D16: =IF(BREAKDOWN!$AR$77=1,(BREAKDOWN!Q75/100),0) -> 0% | F16: 1 | I16: =IF(D16>0,F16,0) -> 0
C17: OR
A18: • | B18: Disbursement value | D18: =IF(BREAKDOWN!$AR$77=1,(BREAKDOWN!Q75/100),0) -> 0 | F18: 1 | I18: =IF(D18>0,F18,0) -> 0
B21: Fee Category | D21: =IF(R84<2,"","ONLY SELECT ONE FEE CATEGORY") -> 
B23: Project Type | L23: Fee Category
B24: General Agriculture Engineering | L24: D
B25: Pipelines
B26: Water | L26: A
B27: Hazardous substances, submarine pipelines | L27: D
B28: Transport Infrastructure
B29: Airport Runways, taxiways and Aprons | L29: A
B30: New and improved unpaved roads | L30: C
B31: New and improved Urban Roads | L31: C
B32: New Paved Rural Roads | L32: A
B33: New Rural Freeways | L33: B
B34: New Urban Freeways | L34: D
B35: Railway Trackwork | L35: A
B36: Railways (Excluding cost of track) | L36: A
B37: Road Rehabilitation | L37: A
B38: Rural Road Expansion | L38: B
B39: Water
B40: Large Earth Dams | L40: B
B41: Large Concrete Dams | L41: C
B42: Small Dams | L42: D
B43: Stormwater Pipes (Pre-cast Units) | L43: A
B44: Irrigation - Centre Pivot, lateral move and similar | L44: B
B45: Irrigation - Sprinklers and similar | L45: C
B46: Irrigation - micro, drip and similar | L46: D
B47: River intakes, Pumpstations | L47: E
B48: Municipal and Building Civils
B49: Building Civils | L49: C
B50: Municipal Services | L50: C
B51: Parking lots | L51: A
B52: Water and Sewage Treatment Works | L52: F
B53: Geotechnical
B54: Underground Structures and Dredging | L54: A
B55: Reinforced Concrete and Structural Steel
B56: Complex Load Bearing Structures, Quay Walls and Jetties | L56: F
B57: Minor structures | L57: C
B58: Overpasses and Freeway Bridges | L58: E
B59: Powerstation Civil and Building | L59: C
B60: River Bridges | L60: F
B61: Stormwater structures, Breakwaters and canals (Designed) | L61: C
B62: Unique structures | L62: E
B63: Water Retaining Structures | L63: D
B64: Water Towers | L64: E
B65: Building Structural
B66: Iconic and Unique Buildings and Structural Alterations | L66: G
B67: Hospitals, Hotels, Airports, Stadia, Exhibition Halls and Retail Shopping Centres | L67: F
B68: Residential, Offices, Educational and Industrial | L68: E
B69: Warehouses | L69: D
P72: DO NOT DELETE
Q74: FALSE | R74: =-(Q74*-1) -> 0 | S74: =IF(R74=1,1,0) -> 0
Q75: FALSE | R75: 0 | S75: =IF(R75=1,2,0) -> 0
Q76: TRUE | R76: 1 | S76: =IF(R76=1,3,0) -> 3
B77: Fee range for project categories | D77: =IF(R88<2,"","ONLY SELECT ONE FEE RANGE") ->  | Q77: FALSE | R77: 0 | S77: =IF(R77=1,4,0) -> 0
Q78: FALSE | R78: 0 | S78: =IF(R78=1,5,0) -> 0
Q79: FALSE | R79: 0 | S79: =IF(R79=1,6,0) -> 0
Q80: FALSE | R80: 0 | S80: =IF(R80=1,7,0) -> 0
S81: =SUM(S74:S80) -> 3
B82: Fee Calculation
B84: % at R10 mil value | C84: =IF(AND(R84<=1,R88<=1),INDEX(C89:E95,S81,S88),"ERROR") -> 9.00% | R84: =SUM(R74:R80) -> 1
B85: % applicable to project | C85: =SUM(T90:T93) ->  | Q85: FALSE | R85: =-(Q85*-1) -> 0 | S85: =IF(R85=1,1,0) -> 0
Q86: FALSE | R86: =-(Q86*-1) -> 0 | S86: =IF(R86=1,2,0) -> 0
B87: Fee Category | C87: Lower Limit | D87: Upper Limit | E87: Average | J87: Values | Q87: TRUE | R87: =-(Q87*-1) -> 1 | S87: =IF(R87=1,3,0) -> 3
J88: 1 000 001 < 10 000 000 | R88: =SUM(R85:R87) -> 1 | S88: =SUM(S85:S87) -> 3
B89: A | C89: 6% | D89: 8% | E89: =AVERAGE(C89:D89) -> 7.00% | J89: 6.00%
B90: B | C90: 7% | D90: 9% | E90: 8.00% | J90: 7.00% | P90: 0 < 1 000 000 | R90: =AND(0<$D$12,$D$12<=1000000) ->  | S90: =-(R90*-1) ->  | T90: =IF(S90=1,MAX(0.04,-0.01*LN($D$12/1000000)+0.023+$C$84),0) -> 
B91: C | C91: 8% | D91: 10% | E91: 9.00% | J91: 8.00% | P91: 1 000 001 < 10 000 000 | R91: =AND(1000001<=$D$12,$D$12<=10000000) ->  | S91: =-(R91*-1) ->  | T91: =IF(S91=1,MAX(0.04,-0.01*LN($D$12/1000000)+0.023+$C$84),0) -> 
B92: D | C92: 9% | D92: 11% | E92: 10.00% | J92: 9.00% | P92: 10 000 001 < 100 000 000 | R92: =AND(10000001<=$D$12,$D$12<=100000000) ->  | S92: =-(R92*-1) ->  | T92: =IF(S92=1,MAX(0.04,-0.01*LN($D$12/1000000)+0.023+$C$84),0) -> 
B93: E | C93: 10% | D93: 13% | E93: =AVERAGE(C93:D93) -> 11.50% | J93: 10.00% | P93: 100 000 001 < 1 000 000 000 | R93: =AND(100000001<=$D$12,$D$12<=1000000000) ->  | S93: =-(R93*-1) ->  | T93: =IF(S93=1,MAX(0.04,-0.01*LN($D$12/1000000)+0.023+$C$84),0) -> 
B94: F | C94: 11% | D94: 14% | E94: 12.50% | J94: 11.00%
B95: G | C95: 12% | D95: 15% | E95: 13.50% | J95: 12.00% | P95: =SUM(T90:T93)-C85 -> 
P96: CHECK
B97: Fee | D97: =ROUND(D12*C85,0) -> 
B98: Discount | D98: =ROUND(-$D$97*$D$14,0) -> 
B99: Sub-total | D99: =SUM(D97:D98) -> 
B101: Disbursements | D101: =+'SUMMARY (2)'!N22 -> 
B103: Total Structural Engineer Fee | D103: =SUM(D99:D101) ->  | E103: Excl Vat
B106: Fee Stages
B108: Engineering Projects | J108: Building Projects
B109: Stage of Service | D109: Percentage | J109: Stage of Service | L109: Percentage
B110: Inception | D110: 5% | J110: Inception | L110: 5%
B111: Concept and Viability | D111: 25% | J111: Concept and Viability | L111: 20%
B112: Design Development | D112: 30% | J112: Design Development | L112: 30%
B113: Documentation and Procurement | D113: 10% | J113: Documentation and Procurement | L113: 15%
B114: Contract admin and Inception | D114: 25% | J114: Contract admin and Inception | L114: 25%
B115: Close-out | D115: 5% | J115: Close-out | L115: 5%
B118: Stage 1 | C118: Inception | E118: =ROUND($D$103*K118%,2) ->  | K118: 5 | L118: %
B119: Stage 2 | C119: Concept & Viability | E119: =ROUND($D$103*K119%,2) ->  | K119: 20 | L119: %
B120: Stage 3 | C120: Design Development | K120: 30 | L120: %
B121: Stage 4 | C121: Documentation & Procurement | K121: 15 | L121: %
B122: Stage 5 | C122: Construction | K122: 25 | L122: %
B123: Stage 6 | C123: Close Out | K123: 5 | L123: %
E124: =SUM(E118:E123) ->  | K124: =SUM(K118:K123) -> 100 | L124: % | P124: =D103-E124 ->  | Q124: CHECK
B127: Notes - See latest fee scales
A128: * | B128: Guideline and scope of service, refer 3
A129: * | B129: Processes for estimating fees, refer 4.1
A130: * | B130: Time based fees, refer 4.2
A131: * | B131: Fees for additional service, refer 4.4
A132: * | B132: Value based fees, refer 4.5
A133: * | B133: Expenses and Costs. Refer 4.6

Sheet CIVIL (hidden)
B2: =UPPER(BREAKDOWN!S19) -> CIVIL ENGINEER | J2: =IF(AND($P$12=0,$P$124=0),"","ERROR ON SHEET") ->  | M2: Act 46 of 2000
M3: ECSA Guideline for Services and Process for estimating fees
B4: Variables
A6: • | B6: Value for fee purposes | D6: =+BREAKDOWN!T71 ->  | E6: Excluding Preliminaries and Escalation
A8: • | B8: Main Contractor Preliminaries | D8: =BREAKDOWN!T64 -> 0 | E8: Pro-rata of Main Contractors Preliminaries on Value of Engineering works
A10: • | B10: Escalation | D10: 0 | P10: ALL CHECKS TO BE = 0
A12: • | B12: Total value for fee purposes | D12: =D6+D8+D10 ->  | P12: =(D6+D8+D10)-D12 ->  | Q12: CHECK
A14: • | B14: Discount % | D14: =+BREAKDOWN!W73 -> 45%
A16: • | B16: Disbursement % | D16: =IF(BREAKDOWN!$AR$77=1,(BREAKDOWN!T75/100),0) -> 0% | F16: 1 | I16: =IF(D16>0,F16,0) -> 0
C17: OR
A18: • | B18: Disbursement value | D18: =IF(BREAKDOWN!$AR$77=1,(BREAKDOWN!T75/100),0) -> 0 | F18: 1 | I18: =IF(D18>0,F18,0) -> 0
B21: Fee Category | D21: =IF(R84<2,"","ONLY SELECT ONE FEE CATEGORY") -> 
B23: Project Type | L23: Fee Category
B24: General Agriculture Engineering | L24: D
B25: Pipelines
B26: Water | L26: A
B27: Hazardous substances, submarine pipelines | L27: D
B28: Transport Infrastructure
B29: Airport Runways, taxiways and Aprons | L29: A
B30: New and improved unpaved roads | L30: C
B31: New and improved Urban Roads | L31: C
B32: New Paved Rural Roads | L32: A
B33: New Rural Freeways | L33: B
B34: New Urban Freeways | L34: D
B35: Railway Trackwork | L35: A
B36: Railways (Excluding cost of track) | L36: A
B37: Road Rehabilitation | L37: A
B38: Rural Road Expansion | L38: B
B39: Water
B40: Large Earth Dams | L40: B
B41: Large Concrete Dams | L41: C
B42: Small Dams | L42: D
B43: Stormwater Pipes (Pre-cast Units) | L43: A
B44: Irrigation - Centre Pivot, lateral move and similar | L44: B
B45: Irrigation - Sprinklers and similar | L45: C
B46: Irrigation - micro, drip and similar | L46: D
B47: River intakes, Pumpstations | L47: E
B48: Municipal and Building Civils
B49: Building Civils | L49: C
B50: Municipal Services | L50: C
B51: Parking lots | L51: A
B52: Water and Sewage Treatment Works | L52: F
B53: Geotechnical
B54: Underground Structures and Dredging | L54: A
B55: Reinforced Concrete and Structural Steel
B56: Complex Load Bearing Structures, Quay Walls and Jetties | L56: F
B57: Minor structures | L57: C
B58: Overpasses and Freeway Bridges | L58: E
B59: Powerstation Civil and Building | L59: C
B60: River Bridges | L60: F
B61: Stormwater structures, Breakwaters and canals (Designed) | L61: C
B62: Unique structures | L62: E
B63: Water Retaining Structures | L63: D
B64: Water Towers | L64: E
B65: Building Structural
B66: Iconic and Unique Buildings and Structural Alterations | L66: G
B67: Hospitals, Hotels, Airports, Stadia, Exhibition Halls and Retail Shopping Centres | L67: F
B68: Residential, Offices, Educational and Industrial | L68: E
B69: Warehouses | L69: D
P72: DO NOT DELETE
Q74: FALSE | R74: =-(Q74*-1) -> 0 | S74: =IF(R74=1,1,0) -> 0
Q75: FALSE | R75: =-(Q75*-1) -> 0 | S75: =IF(R75=1,2,0) -> 0
Q76: TRUE | R76: 1 | S76: =IF(R76=1,3,0) -> 3
B77: Fee range for project categories | D77: =IF(R88<2,"","ONLY SELECT ONE FEE RANGE") ->  | Q77: FALSE | R77: =-(Q77*-1) -> 0 | S77: =IF(R77=1,4,0) -> 0
Q78: FALSE | R78: 0 | S78: =IF(R78=1,5,0) -> 0
Q79: FALSE | R79: 0 | S79: =IF(R79=1,6,0) -> 0
Q80: FALSE | R80: 0 | S80: =IF(R80=1,7,0) -> 0
S81: =SUM(S74:S80) -> 3
B82: Fee Calculation
B84: % at R10 mil value | C84: =IF(AND(R84<=1,R88<=1),INDEX(C89:E95,S81,S88),"ERROR") -> 9% | R84: =SUM(R74:R80) -> 1
B85: % applicable to project | C85: =SUM(T90:T93) ->  | Q85: FALSE | R85: =-(Q85*-1) -> 0 | S85: =IF(R85=1,1,0) -> 0
Q86: FALSE | R86: =-(Q86*-1) -> 0 | S86: =IF(R86=1,2,0) -> 0
B87: Fee Category | C87: Lower Limit | D87: Upper Limit | E87: Average | J87: Values | Q87: TRUE | R87: =-(Q87*-1) -> 1 | S87: =IF(R87=1,3,0) -> 3
J88: 1 000 001 < 10 000 000 | R88: =SUM(R85:R87) -> 1 | S88: =SUM(S85:S87) -> 3
B89: A | C89: 6% | D89: 8% | E89: =AVERAGE(C89:D89) -> 7% | J89: 6%
B90: B | C90: 7% | D90: 9% | E90: 8% | J90: 7% | P90: 0 < 1 000 000 | R90: =AND(0<$D$12,$D$12<=1000000) ->  | S90: =-(R90*-1) ->  | T90: =IF(S90=1,MAX(0.04,-0.01*LN($D$12/1000000)+0.023+$C$84),0) -> 
B91: C | C91: 8% | D91: 10% | E91: 9% | J91: 8% | P91: 1 000 001 < 10 000 000 | R91: =AND(1000001<=$D$12,$D$12<=10000000) ->  | S91: =-(R91*-1) ->  | T91: =IF(S91=1,MAX(0.04,-0.01*LN($D$12/1000000)+0.023+$C$84),0) -> 
B92: D | C92: 9% | D92: 11% | E92: 10% | J92: 9% | P92: 10 000 001 < 100 000 000 | R92: =AND(10000001<=$D$12,$D$12<=100000000) ->  | S92: =-(R92*-1) ->  | T92: =IF(S92=1,MAX(0.04,-0.01*LN($D$12/1000000)+0.023+$C$84),0) -> 
B93: E | C93: 10% | D93: 13% | E93: 12% | J93: 10% | P93: 100 000 001 < 1 000 000 000 | R93: =AND(100000001<=$D$12,$D$12<=1000000000) ->  | S93: =-(R93*-1) ->  | T93: =IF(S93=1,MAX(0.04,-0.01*LN($D$12/1000000)+0.023+$C$84),0) -> 
B94: F | C94: 11% | D94: 14% | E94: 13% | J94: 11%
B95: G | C95: 12% | D95: 15% | E95: 14% | J95: 12% | P95: =SUM(T90:T93)-C85 -> 
P96: CHECK
B97: Fee | D97: =ROUND(D12*C85,0) -> 
B98: Discount | D98: =ROUND(-$D$97*($D$14),0) -> 
B99: Sub-total | D99: =SUM(D97:D98) -> 
B101: Disbursements | D101: =+'SUMMARY (2)'!P22 -> 
B103: Total Civil Engineer Fee | D103: =SUM(D99:D101) ->  | E103: Excl Vat
B106: Fee Stages
B108: Engineering Projects | J108: Building Projects
B109: Stage of Service | D109: Percentage | J109: Stage of Service | L109: Percentage
B110: Inception | D110: 5% | J110: Inception | L110: 5%
B111: Concept and Viability | D111: 25% | J111: Concept and Viability | L111: 25%
B112: Design Development | D112: 25% | J112: Design Development | L112: 25%
B113: Documentation and Procurement | D113: 15% | J113: Documentation and Procurement | L113: 15%
B114: Contract admin and Inception | D114: 25% | J114: Contract admin and Inception | L114: 25%
B115: Close-out | D115: 5% | J115: Close-out | L115: 5%
B118: Stage 1 | C118: Inception | E118: =ROUND($D$103*K118%,2) ->  | K118: 5 | L118: %
B119: Stage 2 | C119: Concept & Viability | E119: =ROUND($D$103*K119%,2) ->  | K119: 25 | L119: %
B120: Stage 3 | C120: Design Development | K120: 25 | L120: %
B121: Stage 4 | C121: Documentation & Procurement | K121: 15 | L121: %
B122: Stage 5 | C122: Construction | K122: 25 | L122: %
B123: Stage 6 | C123: Close Out | K123: 5 | L123: %
E124: =SUM(E118:E123) ->  | K124: =SUM(K118:K123) -> 100 | L124: % | P124: =D103-E124 ->  | Q124: CHECK
B127: Notes - See latest fee scales
A128: * | B128: Guideline and scope of service, refer 3
A129: * | B129: Processes for estimating fees, refer 4.1
A130: * | B130: Time based fees, refer 4.2
A131: * | B131: Fees for additional service, refer 4.4
A132: * | B132: Value based fees, refer 4.5
A133: * | B133: Expenses and Costs. Refer 4.6

Sheet MECH (hidden)
B2: =UPPER(BREAKDOWN!V19) -> MECHANICAL ENGINEER | J2: =IF(AND($P$12=0,$P$88=0),"","ERROR ON SHEET") ->  | M2: Act 46 of 2000
M3: ECSA Guideline for Services and Process for estimating fees
B4: Variables
A6: • | B6: Value for fee purposes | D6: =+BREAKDOWN!W71 -> 
A8: • | B8: Main Contractor Preliminaries | D8: =BREAKDOWN!W64 -> 0
A10: • | B10: Escalation | D10: =BREAKDOWN!W68+BREAKDOWN!W69 ->  | P10: ALL CHECKS TO BE = 0
A12: • | B12: Total value for fee purposes | D12: =D6+D8+D10 ->  | P12: =(D6+D8+D10)-D12 ->  | Q12: CHECK
A14: • | B14: Discount % | D14: =+BREAKDOWN!W73 -> 45%
A16: • | B16: Disbursement % | D16: =IF(BREAKDOWN!$AR$77=1,(BREAKDOWN!W75/100),0) -> 0% | F16: 1 | I16: =IF(D16>0,F16,0) -> 0
C17: OR
A18: • | B18: Disbursement value | D18: =IF(BREAKDOWN!$AR$77=1,(BREAKDOWN!W75/100),0) -> 0 | F18: 1 | I18: =IF(D18>0,F18,0) -> 0
P20: =+MECH!E88*50 -> 
B21: Fee Category | D21: =IF(R57<2,"","ONLY SELECT ONE FEE CATEGORY") -> 
B23: Project Type | L23: Fee Category
B24: Engineering Services
B25: Green building design and energy management | L25: F
B26: Specialised fire protection systems such as gas, foam, extinguishing, etc. | L26: D
B27: Hazardous material systems | L27: F
B28: HVAC systems | L28: D
B29: Industrial process, piping and instrumentation | L29: E
B30: Mechanical plant and equipment | L30: C
B31: Pressure vessel design | L31: F
B32: Pumping and pipeline systems | L32: D
B33: Refrigeration and cold storage | L33: C
B34: Vertical transportation systems and material handling | L34: D
B35: Building Services
B36: Industrial building services and utilities | L36: E
B37: General - Commercial, retail, offices, schools, hostels, clinics, hotels and resorts | L37: E
B38: Specialised - Airport buildings, museums, theaters, libraries, public entertainment, hospitals, research facilities, universities. | L38: F
B39: laboratories, conference facilities, institutional buildings and facilities
B40: Residential - Individual luxury housing units and apartment buildings | L40: F
B41: Residential - Multiple (>50) standard housing units | L41: C
B42: Wet Services | L42: G
P45: DO NOT DELETE
Q47: FALSE | R47: =-(Q47*-1) -> 0 | S47: =IF(R47=1,1,0) -> 0
Q48: FALSE | R48: =-(Q48*-1) -> 0 | S48: =IF(R48=1,2,0) -> 0
Q49: TRUE | R49: =-(Q49*-1) -> 1 | S49: =IF(R49=1,3,0) -> 3
B50: Fee range for project categories | D50: =IF(R61<2,"","ONLY SELECT ONE FEE RANGE") ->  | Q50: FALSE | R50: =-(Q50*-1) -> 0 | S50: =IF(R50=1,4,0) -> 0
S54: =SUM(S47:S53) -> 3
B55: Fee Calculation
B57: % at R10 mil value | C57: 12.00% | R57: =SUM(R47:R53) -> 1
B58: % applicable to project | C58: =SUM(T63:T66) ->  | Q58: FALSE | R58: =-(Q58*-1) -> 0 | S58: =IF(R58=1,1,0) -> 0
Q59: FALSE | R59: =-(Q59*-1) -> 0 | S59: =IF(R59=1,2,0) -> 0
B60: Fee Category | C60: Lower Limit | D60: Upper Limit | E60: Average | J60: Values | Q60: TRUE | R60: =-(Q60*-1) -> 1 | S60: =IF(R60=1,3,0) -> 3
J61: 1 000 001 < 10 000 000 | R61: =SUM(R58:R60) -> 1 | S61: =SUM(S58:S60) -> 3
B62: A | C62: 6% | D62: 8% | E62: =AVERAGE(C62:D62) -> 7% | J62: 6%
B63: B | C63: 7% | D63: 9% | E63: 8% | J63: 7% | P63: 0 < 1 000 000 | R63: =AND(0<$D$12,$D$12<=1000000) ->  | S63: =-(R63*-1) ->  | T63: =IF(S63=1,MAX(0.04,-0.01*LN($D$12/1000000)+0.023+$C$57),0) -> 
B64: C | C64: 8% | D64: 10% | E64: 9% | J64: 8% | P64: 1 000 001 < 10 000 000 | R64: =AND(1000001<=$D$12,$D$12<=10000000) ->  | S64: =-(R64*-1) ->  | T64: =IF(S64=1,MAX(0.04,-0.01*LN($D$12/1000000)+0.023+$C$57),0) -> 
B65: D | C65: 9% | D65: 11% | E65: 10% | J65: 9% | P65: 10 000 001 < 100 000 000 | R65: =AND(10000001<=$D$12,$D$12<=100000000) ->  | S65: =-(R65*-1) ->  | T65: =IF(S65=1,MAX(0.04,-0.01*LN($D$12/1000000)+0.023+$C$57),0) -> 
B66: E | C66: 10% | D66: 13% | E66: 12% | J66: 10% | P66: 100 000 001 < 1 000 000 000 | R66: =AND(100000001<=$D$12,$D$12<=1000000000) ->  | S66: =-(R66*-1) ->  | T66: =IF(S66=1,MAX(0.04,-0.01*LN($D$12/1000000)+0.023+$C$57),0) -> 
B67: F | C67: 11% | D67: 14% | E67: 13% | J67: 11%
B68: G | C68: 12% | D68: 15% | E68: 14% | J68: 12% | P68: =SUM(T63:T66)-C58 -> 
P69: CHECK
B70: Fee | D70: =ROUND(D12*C58,0) -> 
B71: Discount | D71: =ROUND(-$D$70*($D$14),0) -> 
B72: Sub-total | D72: =SUM(D70:D71) -> 
B74: Disbursements | D74: =+'SUMMARY (2)'!R22 -> 
B76: Total Mechanical Engineer Fee | D76: =SUM(D72:D74) ->  | E76: Excl Vat
B79: Fee Stages
B82: Stage 1 | C82: Inception | E82: =ROUND($D$76*K82%,2) ->  | K82: 5 | L82: %
B83: Stage 2 | C83: Concept & Viability | E83: =ROUND($D$76*K83%,2) ->  | K83: 15 | L83: %
B84: Stage 3 | C84: Design Development and | E84: =ROUND($D$76*K84%,2) ->  | K84: 40 | L84: %
C85: Documentation & Procurement
B86: Stage 4 | C86: Construction | E86: =ROUND($D$76*K86%,2) ->  | K86: 35 | L86: %
B87: Stage 5 | C87: Close Out | E87: =ROUND($D$76*K87%,2) ->  | K87: 5 | L87: %
E88: =SUM(E82:E87) ->  | K88: =SUM(K82:K87) -> 100 | L88: % | P88: =D76-E88 ->  | Q88: CHECK
B91: Notes - See latest fee scales
A92: * | B92: Guideline and scope of service, refer 3
A93: * | B93: Processes for estimating fees, refer 4.1
A94: * | B94: Time based fees, refer 4.2
A95: * | B95: Fees for additional service, refer 4.4
A96: * | B96: Value based fees, refer 4.5
A97: * | B97: Expenses and Costs. Refer 4.6

Sheet ELEC (hidden)
B2: =UPPER(BREAKDOWN!Y19) -> ELECTRICAL ENGINEER | J2: =IF(AND($P$12=0,$P$87=0),"","ERROR ON SHEET") ->  | M2: Act 46 of 2000
M3: ECSA Guideline for Services and Process for estimating fees
B4: Variables
A6: • | B6: Value for fee purposes | D6: =+BREAKDOWN!Z71 -> 
A8: • | B8: Main Contractor Preliminaries | D8: =BREAKDOWN!Z64 -> 0
A10: • | B10: Escalation | D10: =BREAKDOWN!Z68+BREAKDOWN!Z69 ->  | P10: ALL CHECKS TO BE = 0
A12: • | B12: Total value for fee purposes | D12: =D6+D8+D10 ->  | P12: =(D6+D8+D10)-D12 ->  | Q12: CHECK
A14: • | B14: Discount % | D14: =BREAKDOWN!Z73 -> 45%
A16: • | B16: Disbursement % | D16: =IF(BREAKDOWN!$AR$77=1,(BREAKDOWN!Z75/100),0) -> 0% | F16: 1 | I16: =IF(D16>0,F16,0) -> 0
C17: OR
A18: • | B18: Disbursement value | D18: =IF(BREAKDOWN!$AR$77=1,(BREAKDOWN!Z75/100),0) -> 0 | F18: 1 | I18: =IF(D18>0,F18,0) -> 0
B21: Fee Category | D21: =IF(R55<2,"","ONLY SELECT ONE FEE CATEGORY") -> 
B23: Project Type | L23: Fee Category
B24: Engineering Services
B25: Green building design and energy management | L25: F
B26: Communications, data and IT cabling systems | L26: E
B27: Energy generation and transmission | L27: D
B28: Fire protection, security and access control | E28: Use next tab | L28: E
B29: Industrial process, wiring and instrumentation | L29: E
B30: Mining | L30: D
B31: Motor control and electrical installations for machinery and equipment | L31: E
B32: MV and LV Distribution | L32: C
B33: Street, area and sportsfield lighting | L33: D
B34: Building Services
B35: Industrial building services and utilities | L35: E
B36: General - Commercial, retail, offices, schools, hostels, clinics, hotels and resorts | L36: E
B37: Specialised - Airport buildings, museums, theaters, libraries, public entertainment, hospitals, research facilities, universities. | L37: F
B38: laboratories, conference facilities, institutional buildings and facilities
B39: Residential - Individual luxury housing units and apartment buildings | L39: F
B40: Residential - Multiple (>50) standard housing units | L40: C
P43: DO NOT DELETE
Q45: FALSE | R45: =-(Q45*-1) -> 0 | S45: =IF(R45=1,1,0) -> 0
Q46: FALSE | R46: =-(Q46*-1) -> 0 | S46: =IF(R46=1,2,0) -> 0
Q47: TRUE | R47: =-(Q47*-1) -> 1 | S47: =IF(R47=1,3,0) -> 3
B48: Fee range for project categories | D48: =IF(R59<2,"","ONLY SELECT ONE FEE RANGE") ->  | Q48: FALSE | R48: =-(Q48*-1) -> 0 | S48: =IF(R48=1,4,0) -> 0
S52: =SUM(S45:S51) -> 3
B53: Fee Calculation
B55: % at R10 mil value | C55: 12% | R55: =SUM(R45:R51) -> 1
B56: % applicable to project | C56: =SUM(T61:T64) ->  | Q56: FALSE | R56: =-(Q56*-1) -> 0 | S56: =IF(R56=1,1,0) -> 0
Q57: FALSE | R57: =-(Q57*-1) -> 0 | S57: =IF(R57=1,2,0) -> 0
B58: Fee Category | C58: Lower Limit | D58: Upper Limit | E58: Average | J58: Values | Q58: TRUE | R58: =-(Q58*-1) -> 1 | S58: =IF(R58=1,3,0) -> 3
J59: 1 000 001 < 10 000 000 | R59: =SUM(R56:R58) -> 1 | S59: =SUM(S56:S58) -> 3
B60: A | C60: 6% | D60: 8% | E60: =AVERAGE(C60:D60) -> 7% | J60: 6%
B61: B | C61: 7% | D61: 9% | E61: 8% | J61: 7% | P61: 0 < 1 000 000 | R61: =AND(0<$D$12,$D$12<=1000000) ->  | S61: =-(R61*-1) ->  | T61: =IF(S61=1,MAX(0.04,-0.01*LN($D$12/1000000)+0.023+$C$55),0) -> 
B62: C | C62: 8% | D62: 10% | E62: 9% | J62: 8% | P62: 1 000 001 < 10 000 000 | R62: =AND(1000001<=$D$12,$D$12<=10000000) ->  | S62: =-(R62*-1) ->  | T62: =IF(S62=1,MAX(0.04,-0.01*LN($D$12/1000000)+0.023+$C$55),0) -> 
B63: D | C63: 9% | D63: 11% | E63: 10% | J63: 9% | P63: 10 000 001 < 100 000 000 | R63: =AND(10000001<=$D$12,$D$12<=100000000) ->  | S63: =-(R63*-1) ->  | T63: =IF(S63=1,MAX(0.04,-0.01*LN($D$12/1000000)+0.023+$C$55),0) -> 
B64: E | C64: 10% | D64: 13% | E64: 12% | J64: 10% | P64: 100 000 001 < 1 000 000 000 | R64: =AND(100000001<=$D$12,$D$12<=1000000000) ->  | S64: =-(R64*-1) ->  | T64: =IF(S64=1,MAX(0.04,-0.01*LN($D$12/1000000)+0.023+$C$55),0) -> 
B65: F | C65: 11% | D65: 14% | E65: 13% | J65: 11%
B66: G | C66: 12% | D66: 15% | E66: 14% | J66: 12%
B68: Fee | D68: =ROUND(D12*C56,0) -> 
B69: Discount | D69: =ROUND(-$D$68*($D$14),0) -> 
B70: Sub-total | D70: =SUM(D68:D69) -> 
B72: Disbursements | D72: =+'SUMMARY (2)'!T22 -> 
B74: Total Electrical Engineer Fee | D74: =SUM(D70:D72) ->  | E74: Excl Vat
B77: Fee Stages
B80: Stage 1 | C80: Inception | E80: =ROUND($D$74*K80%,2) ->  | K80: 5 | L80: %
B81: Stage 2 | C81: Concept & Viability | E81: =ROUND($D$74*K81%,2) ->  | K81: 15 | L81: %
B82: Stage 3 | C82: Design Development and | E82: =ROUND($D$74*K82%,2) ->  | K82: 40 | L82: %
C83: Documentation & Procurement
B84: Stage 4 | C84: Construction | E84: =ROUND($D$74*K84%,2) ->  | K84: 35 | L84: %
B85: Stage 5 | C85: Close Out | E85: =ROUND($D$74*K85%,2) ->  | K85: 5 | L85: %
E86: =SUM(E80:E85) ->  | K86: =SUM(K80:K85) -> 100 | L86: %
P87: =+D74-E86 ->  | Q87: CHECK
B89: Notes - See latest fee scales
A90: * | B90: Guideline and scope of service, refer 3
A91: * | B91: Processes for estimating fees, refer 4.1
A92: * | B92: Time based fees, refer 4.2
A93: * | B93: Fees for additional service, refer 4.4
A94: * | B94: Value based fees, refer 4.5
A95: * | B95: Expenses and Costs. Refer 4.6

Sheet FIRE (hidden)
B2: =+BREAKDOWN!AE19 -> Fire Engineer | J2: =IF(AND($P$12=0,$P$87=0),"","ERROR ON SHEET") ->  | M2: Act 46 of 2000
M3: ECSA Guideline for Services and Process for estimating fees
B4: Variables
A6: • | B6: Value for fee purposes | D6: =+BREAKDOWN!AF66 -> 
A8: • | B8: Main Contractor Preliminaries | D8: =BREAKDOWN!Z64 -> 0
A10: • | B10: Escalation | D10: =BREAKDOWN!Z68+BREAKDOWN!Z69 ->  | P10: ALL CHECKS TO BE = 0
A12: • | B12: Total value for fee purposes | D12: =D6+D8+D10 ->  | P12: =(D6+D8+D10)-D12 ->  | Q12: CHECK
A14: • | B14: Discount % | D14: =BREAKDOWN!Z73 -> 45%
A16: • | B16: Disbursement % | D16: =IF(BREAKDOWN!$AR$77=1,(BREAKDOWN!Z75/100),0) -> 0% | F16: 1 | I16: =IF(D16>0,F16,0) -> 0
C17: OR
A18: • | B18: Disbursement value | D18: =IF(BREAKDOWN!$AR$77=1,(BREAKDOWN!Z75/100),0) -> 0 | F18: 1 | I18: =IF(D18>0,F18,0) -> 0
B21: Fee Category | D21: =IF(R55<2,"","ONLY SELECT ONE FEE CATEGORY") -> 
B23: Project Type | L23: Fee Category
B24: Engineering Services
B25: Green building design and energy management | L25: F
B26: Communications, data and IT cabling systems | L26: E
B27: Energy generation and transmission | L27: D
B28: Fire protection, security and access control | E28: Use next tab | L28: E
B29: Industrial process, wiring and instrumentation | L29: E
B30: Mining | L30: D
B31: Motor control and electrical installations for machinery and equipment | L31: E
B32: MV and LV Distribution | L32: C
B33: Street, area and sportsfield lighting | L33: D
B34: Building Services
B35: Industrial building services and utilities | L35: E
B36: General - Commercial, retail, offices, schools, hostels, clinics, hotels and resorts | L36: E
B37: Specialised - Airport buildings, museums, theaters, libraries, public entertainment, hospitals, research facilities, universities. | L37: F
B38: laboratories, conference facilities, institutional buildings and facilities
B39: Residential - Individual luxury housing units and apartment buildings | L39: F
B40: Residential - Multiple (>50) standard housing units | L40: C
P43: DO NOT DELETE
Q45: FALSE | R45: =-(Q45*-1) -> 0 | S45: =IF(R45=1,1,0) -> 0
Q46: FALSE | R46: =-(Q46*-1) -> 0 | S46: =IF(R46=1,2,0) -> 0
Q47: TRUE | R47: =-(Q47*-1) -> 1 | S47: =IF(R47=1,3,0) -> 3
B48: Fee range for project categories | D48: =IF(R59<2,"","ONLY SELECT ONE FEE RANGE") ->  | Q48: FALSE | R48: =-(Q48*-1) -> 0 | S48: =IF(R48=1,4,0) -> 0
S52: =SUM(S45:S51) -> 3
B53: Fee Calculation
B55: % at R10 mil value | C55: 12% | R55: =SUM(R45:R51) -> 1
B56: % applicable to project | C56: =SUM(T61:T64) ->  | Q56: FALSE | R56: =-(Q56*-1) -> 0 | S56: =IF(R56=1,1,0) -> 0
Q57: FALSE | R57: =-(Q57*-1) -> 0 | S57: =IF(R57=1,2,0) -> 0
B58: Fee Category | C58: Lower Limit | D58: Upper Limit | E58: Average | J58: Values | Q58: TRUE | R58: =-(Q58*-1) -> 1 | S58: =IF(R58=1,3,0) -> 3
J59: 1 000 001 < 10 000 000 | R59: =SUM(R56:R58) -> 1 | S59: =SUM(S56:S58) -> 3
B60: A | C60: 6% | D60: 8% | E60: =AVERAGE(C60:D60) -> 7% | J60: 6%
B61: B | C61: 7% | D61: 9% | E61: 8% | J61: 7% | P61: 0 < 1 000 000 | R61: =AND(0<$D$12,$D$12<=1000000) ->  | S61: =-(R61*-1) ->  | T61: =IF(S61=1,MAX(0.04,-0.01*LN($D$12/1000000)+0.023+$C$55),0) -> 
B62: C | C62: 8% | D62: 10% | E62: 9% | J62: 8% | P62: 1 000 001 < 10 000 000 | R62: =AND(1000001<=$D$12,$D$12<=10000000) ->  | S62: =-(R62*-1) ->  | T62: =IF(S62=1,MAX(0.04,-0.01*LN($D$12/1000000)+0.023+$C$55),0) -> 
B63: D | C63: 9% | D63: 11% | E63: 10% | J63: 9% | P63: 10 000 001 < 100 000 000 | R63: =AND(10000001<=$D$12,$D$12<=100000000) ->  | S63: =-(R63*-1) ->  | T63: =IF(S63=1,MAX(0.04,-0.01*LN($D$12/1000000)+0.023+$C$55),0) -> 
B64: E | C64: 10% | D64: 13% | E64: 12% | J64: 10% | P64: 100 000 001 < 1 000 000 000 | R64: =AND(100000001<=$D$12,$D$12<=1000000000) ->  | S64: =-(R64*-1) ->  | T64: =IF(S64=1,MAX(0.04,-0.01*LN($D$12/1000000)+0.023+$C$55),0) -> 
B65: F | C65: 11% | D65: 14% | E65: 13% | J65: 11%
B66: G | C66: 12% | D66: 15% | E66: 14% | J66: 12%
B68: Fee | D68: =ROUND(D12*C56,0) -> 
B69: Discount | D69: =ROUND(-$D$68*($D$14),0) -> 
B70: Sub-total | D70: =SUM(D68:D69) -> 
B72: Disbursements | D72: =+'SUMMARY (2)'!V22 -> 
B74: Total Electrical Engineer Fee | D74: =SUM(D70:D72) ->  | E74: Excl Vat
B77: Fee Stages
B80: Stage 1 | C80: Inception | E80: =ROUND($D$74*K80%,2) ->  | K80: 5 | L80: %
B81: Stage 2 | C81: Concept & Viability | E81: =ROUND($D$74*K81%,2) ->  | K81: 15 | L81: %
B82: Stage 3 | C82: Design Development and | E82: =ROUND($D$74*K82%,2) ->  | K82: 40 | L82: %
C83: Documentation & Procurement
B84: Stage 4 | C84: Construction | E84: =ROUND($D$74*K84%,2) ->  | K84: 35 | L84: %
B85: Stage 5 | C85: Close Out | E85: =ROUND($D$74*K85%,2) ->  | K85: 5 | L85: %
E86: =SUM(E80:E85) ->  | K86: =SUM(K80:K85) -> 100 | L86: %
P87: =+D74-E86 ->  | Q87: CHECK
B89: Notes - See latest fee scales
A90: * | B90: Guideline and scope of service, refer 3 | K90: =D74-E86 -> 
A91: * | B91: Processes for estimating fees, refer 4.1
A92: * | B92: Time based fees, refer 4.2
A93: * | B93: Fees for additional service, refer 4.4
A94: * | B94: Value based fees, refer 4.5
A95: * | B95: Expenses and Costs. Refer 4.6
